Workbook

Sheet Sheet 1 - 11-Samples-AllGenes.F
A1: Supplementary Table 4. FPKM values of all the genes of peanut genotypes at seedling stage
A2: gene | B2: 1 | C2: 2 | D2: 3 | E2: 4 | F2: 5 | G2: 6 | H2: 7 | I2: 8 | J2: 9 | K2: 10 | L2: 11 | M2: Min | N2: Max | O2: Dif
A3: arahy.Tifrunner.gnm1.ann1.FHUH7B | B3: 0 | C3: 9054 | D3: 54951 | E3: 14773 | F3: 27630 | G3: 13041 | H3: 23590 | I3: 14446 | J3: 19019 | K3: 0 | L3: 12790 | M3: =MIN(B3:L3) -> 0 | N3: =MAX(B3:L3) -> 54951 | O3: =N3-M3 -> 54951
A4: arahy.Tifrunner.gnm1.ann1.QXM1B7 | B4: 24117 | C4: 6493 | D4: 47875 | E4: 7902 | F4: 11208 | G4: 7176 | H4: 14132 | I4: 9497 | J4: 15308 | K4: 22776 | L4: 5419 | M4: 5419 | N4: 47875 | O4: 42457
A5: arahy.Tifrunner.gnm1.ann1.97RMNS | B5: 40057 | C5: 12787 | D5: 23006 | E5: 17879 | F5: 27628 | G5: 17017 | H5: 31493 | I5: 20218 | J5: 21122 | K5: 0 | L5: 12695 | M5: 0 | N5: 40057 | O5: 40057
A6: arahy.Tifrunner.gnm1.ann1.I56F9F | B6: 0 | C6: 5811 | D6: 36284 | E6: 8377 | F6: 0 | G6: 7938 | H6: 16557 | I6: 9056 | J6: 12570 | K6: 0 | L6: 7364 | M6: 0 | N6: 36284 | O6: 36284
A7: arahy.Tifrunner.gnm1.ann1.XP1NDF | B7: 5999 | C7: 3637 | D7: 12528 | E7: 5612 | F7: 1750 | G7: 4381 | H7: 2669 | I7: 2871 | J7: 1194 | K7: 22915 | L7: 4346 | M7: 1194 | N7: 22915 | O7: 21721
A8: arahy.Tifrunner.gnm1.ann1.XT6T0B | B8: 0 | C8: 5389 | D8: 15005 | E8: 6973 | F8: 11635 | G8: 6636 | H8: 11299 | I8: 7981 | J8: 8921 | K8: 0 | L8: 4944 | M8: 0 | N8: 15005 | O8: 15005
A9: arahy.Tifrunner.gnm1.ann1.59KA91 | B9: 14435 | C9: 9500 | D9: 9580 | E9: 9455 | F9: 10793 | G9: 9500 | H9: 12388 | I9: 0 | J9: 9904 | K9: 0 | L9: 10674 | M9: 0 | N9: 14435 | O9: 14435
A10: arahy.Tifrunner.gnm1.ann1.W6Q2IR | B10: 8695 | C10: 2882 | D10: 13941 | E10: 3417 | F10: 1569 | G10: 3122 | H10: 3216 | I10: 3972 | J10: 854 | K10: 14401 | L10: 2375 | M10: 854 | N10: 14401 | O10: 13547
A11: arahy.Tifrunner.gnm1.ann1.AM5T3N | B11: 10781 | C11: 7645 | D11: 6025 | E11: 3741 | F11: 1484 | G11: 6303 | H11: 4617 | I11: 5774 | J11: 2570 | K11: 14791 | L11: 3033 | M11: 1484 | N11: 14791 | O11: 13307
A12: arahy.Tifrunner.gnm1.ann1.NME7KH | B12: 13033 | C12: 8204 | D12: 10474 | E12: 7495 | F12: 8116 | G12: 7262 | H12: 10187 | I12: 9444 | J12: 8140 | K12: 0 | L12: 8332 | M12: 0 | N12: 13033 | O12: 13033
A13: arahy.Tifrunner.gnm1.ann1.YZ06AV | B13: 12408 | C13: 6485 | D13: 4704 | E13: 5931 | F13: 7698 | G13: 6661 | H13: 12613 | I13: 7948 | J13: 4796 | K13: 17115 | L13: 4340 | M13: 4340 | N13: 17115 | O13: 12775
A14: arahy.Tifrunner.gnm1.ann1.QC4JPF | B14: 7305 | C14: 4859 | D14: 3602 | E14: 3522 | F14: 1276 | G14: 4866 | H14: 2885 | I14: 4258 | J14: 1836 | K14: 10001 | L14: 2775 | M14: 1276 | N14: 10001 | O14: 8726
A15: arahy.Tifrunner.gnm1.ann1.KTTP1X | B15: 6432 | C15: 1943 | D15: 9258 | E15: 2123 | F15: 1173 | G15: 1769 | H15: 2025 | I15: 2614 | J15: 670 | K15: 9111 | L15: 1793 | M15: 670 | N15: 9258 | O15: 8588
A16: arahy.Tifrunner.gnm1.ann1.0R479N | B16: 920 | C16: 345 | D16: 8662 | E16: 368 | F16: 439 | G16: 374 | H16: 509 | I16: 1842 | J16: 157 | K16: 2453 | L16: 450 | M16: 157 | N16: 8662 | O16: 8505
A17: arahy.Tifrunner.gnm1.ann1.1B2UBR | B17: 3028 | C17: 666 | D17: 8158 | E17: 1007 | F17: 1508 | G17: 1272 | H17: 1880 | I17: 1333 | J17: 1349 | K17: 2468 | L17: 934 | M17: 666 | N17: 8158 | O17: 7491
A18: arahy.Tifrunner.gnm1.ann1.HCTL36 | B18: 4517 | C18: 1433 | D18: 8677 | E18: 1908 | F18: 2163 | G18: 2120 | H18: 3040 | I18: 1991 | J18: 1877 | K18: 4744 | L18: 2231 | M18: 1433 | N18: 8677 | O18: 7244
A19: arahy.Tifrunner.gnm1.ann1.74CD3Z | B19: 2524 | C19: 2194 | D19: 7257 | E19: 1074 | F19: 696 | G19: 3358 | H19: 2253 | I19: 3578 | J19: 1597 | K19: 2654 | L19: 1627 | M19: 696 | N19: 7257 | O19: 6561
A20: arahy.Tifrunner.gnm1.ann1.W35MPH | B20: 7211 | C20: 3090 | D20: 2326 | E20: 3229 | F20: 1936 | G20: 3235 | H20: 3370 | I20: 4432 | J20: 1329 | K20: 5903 | L20: 3328 | M20: 1329 | N20: 7211 | O20: 5882
A21: arahy.Tifrunner.gnm1.ann1.MQB4F1 | B21: 3896 | C21: 58 | D21: 1920 | E21: 3255 | F21: 1941 | G21: 5820 | H21: 4229 | I21: 5334 | J21: 1786 | K21: 3459 | L21: 4551 | M21: 58 | N21: 5820 | O21: 5761
A22: arahy.Tifrunner.gnm1.ann1.G1SUYP | B22: 2433 | C22: 554 | D22: 5794 | E22: 876 | F22: 1408 | G22: 1042 | H22: 1568 | I22: 1091 | J22: 1225 | K22: 1902 | L22: 805 | M22: 554 | N22: 5794 | O22: 5240
A23: arahy.Tifrunner.gnm1.ann1.9042LP | B23: 4779 | C23: 936 | D23: 6003 | E23: 1433 | F23: 2092 | G23: 1919 | H23: 3039 | I23: 1865 | J23: 1343 | K23: 3973 | L23: 1420 | M23: 936 | N23: 6003 | O23: 5067
A24: arahy.Tifrunner.gnm1.ann1.P96X61 | B24: 7590 | C24: 3966 | D24: 7951 | E24: 3594 | F24: 3993 | G24: 3100 | H24: 5823 | I24: 5410 | J24: 3305 | K24: 6050 | L24: 3698 | M24: 3100 | N24: 7951 | O24: 4851
A25: arahy.Tifrunner.gnm1.ann1.QR6FW0 | B25: 5394 | C25: 1909 | D25: 1214 | E25: 2507 | F25: 5966 | G25: 4012 | H25: 5937 | I25: 5632 | J25: 3616 | K25: 3899 | L25: 1598 | M25: 1214 | N25: 5966 | O25: 4752
A26: arahy.Tifrunner.gnm1.ann1.9QX17Y | B26: 4278 | C26: 1613 | D26: 6205 | E26: 2276 | F26: 2459 | G26: 2434 | H26: 3122 | I26: 2132 | J26: 2163 | K26: 4502 | L26: 2723 | M26: 1613 | N26: 6205 | O26: 4592
A27: arahy.Tifrunner.gnm1.ann1.9BXG3M | B27: 5635 | C27: 1581 | D27: 5967 | E27: 1981 | F27: 3070 | G27: 2623 | H27: 3905 | I27: 2831 | J27: 2393 | K27: 4203 | L27: 1728 | M27: 1581 | N27: 5967 | O27: 4386
A28: arahy.Tifrunner.gnm1.ann1.D2DMXG | B28: 4157 | C28: 1896 | D28: 4991 | E28: 2222 | F28: 3036 | G28: 2032 | H28: 3150 | I28: 2561 | J28: 2191 | K28: 3707 | L28: 722 | M28: 722 | N28: 4991 | O28: 4269
A29: arahy.Tifrunner.gnm1.ann1.NKTC04 | B29: 2839 | C29: 636 | D29: 4835 | E29: 927 | F29: 1419 | G29: 1175 | H29: 2076 | I29: 1189 | J29: 1439 | K29: 1820 | L29: 656 | M29: 636 | N29: 4835 | O29: 4199
A30: arahy.Tifrunner.gnm1.ann1.K5ZE2Z | B30: 2128 | C30: 1 | D30: 1 | E30: 2766 | F30: 3762 | G30: 2115 | H30: 3 | I30: 3988 | J30: 2951 | K30: 774 | L30: 2825 | M30: 1 | N30: 3988 | O30: 3987
A31: arahy.Tifrunner.gnm1.ann1.18YQBF | B31: 2736 | C31: 858 | D31: 4770 | E31: 935 | F31: 1310 | G31: 1247 | H31: 1973 | I31: 1362 | J31: 1213 | K31: 1978 | L31: 969 | M31: 858 | N31: 4770 | O31: 3913
A32: arahy.Tifrunner.gnm1.ann1.MF538D | B32: 2568 | C32: 612 | D32: 4448 | E32: 852 | F32: 1251 | G32: 939 | H32: 1457 | I32: 976 | J32: 1039 | K32: 1968 | L32: 840 | M32: 612 | N32: 4448 | O32: 3836
A33: arahy.Tifrunner.gnm1.ann1.FN6RIW | B33: 6771 | C33: 3462 | D33: 7191 | E33: 3829 | F33: 5186 | G33: 3390 | H33: 5590 | I33: 4700 | J33: 3815 | K33: 5090 | L33: 3362 | M33: 3362 | N33: 7191 | O33: 3829
A34: arahy.Tifrunner.gnm1.ann1.X181HS | B34: 3888 | C34: 1284 | D34: 4504 | E34: 1861 | F34: 1340 | G34: 3648 | H34: 2717 | I34: 2917 | J34: 1070 | K34: 4225 | L34: 2194 | M34: 1070 | N34: 4504 | O34: 3434
A35: arahy.Tifrunner.gnm1.ann1.LML9QV | B35: 3608 | C35: 2272 | D35: 211 | E35: 1807 | F35: 1894 | G35: 1622 | H35: 2576 | I35: 2581 | J35: 1641 | K35: 3308 | L35: 1946 | M35: 211 | N35: 3608 | O35: 3397
A36: arahy.Tifrunner.gnm1.ann1.2I4SWN | B36: 2597 | C36: 720 | D36: 3882 | E36: 909 | F36: 1353 | G36: 865 | H36: 1414 | I36: 959 | J36: 897 | K36: 2717 | L36: 818 | M36: 720 | N36: 3882 | O36: 3162
A37: arahy.Tifrunner.gnm1.ann1.X54W53 | B37: 696 | C37: 116 | D37: 3259 | E37: 197 | F37: 308 | G37: 218 | H37: 349 | I37: 203 | J37: 253 | K37: 733 | L37: 132 | M37: 116 | N37: 3259 | O37: 3142
A38: arahy.Tifrunner.gnm1.ann1.G3162F | B38: 2882 | C38: 2000 | D38: 4918 | E38: 1863 | F38: 2035 | G38: 2201 | H38: 2519 | I38: 2643 | J38: 2168 | K38: 2493 | L38: 2468 | M38: 1863 | N38: 4918 | O38: 3055
A39: arahy.Tifrunner.gnm1.ann1.02J1VT | B39: 3963 | C39: 2766 | D39: 3304 | E39: 2149 | F39: 1560 | G39: 1613 | H39: 2260 | I39: 2072 | J39: 1048 | K39: 4054 | L39: 2030 | M39: 1048 | N39: 4054 | O39: 3006
A40: arahy.Tifrunner.gnm1.ann1.X4SEKR | B40: 3777 | C40: 1188 | D40: 3180 | E40: 1236 | F40: 1762 | G40: 1377 | H40: 2441 | I40: 1649 | J40: 1426 | K40: 3402 | L40: 1016 | M40: 1016 | N40: 3777 | O40: 2762
A41: arahy.Tifrunner.gnm1.ann1.8X9BUY | B41: 3 | C41: 0 | D41: 3 | E41: 1 | F41: 1 | G41: 1 | H41: 1 | I41: 1 | J41: 2 | K41: 2573 | L41: 1711 | M41: 0 | N41: 2573 | O41: 2573
A42: arahy.Tifrunner.gnm1.ann1.VUY3N3 | B42: 1467 | C42: 1070 | D42: 3217 | E42: 900 | F42: 873 | G42: 1176 | H42: 958 | I42: 1035 | J42: 714 | K42: 2172 | L42: 1486 | M42: 714 | N42: 3217 | O42: 2502
A43: arahy.Tifrunner.gnm1.ann1.JKC32H | B43: 1371 | C43: 283 | D43: 2777 | E43: 378 | F43: 510 | G43: 470 | H43: 1201 | I43: 565 | J43: 665 | K43: 1018 | L43: 289 | M43: 283 | N43: 2777 | O43: 2494
A44: arahy.Tifrunner.gnm1.ann1.RLCT0M | B44: 2047 | C44: 844 | D44: 3045 | E44: 1211 | F44: 756 | G44: 846 | H44: 732 | I44: 577 | J44: 698 | K44: 1735 | L44: 1754 | M44: 577 | N44: 3045 | O44: 2468
A45: arahy.Tifrunner.gnm1.ann1.6CV0C7 | B45: 1307 | C45: 947 | D45: 2734 | E45: 373 | F45: 411 | G45: 1136 | H45: 1375 | I45: 1413 | J45: 969 | K45: 399 | L45: 415 | M45: 373 | N45: 2734 | O45: 2362
A46: arahy.Tifrunner.gnm1.ann1.66SDN0 | B46: 3191 | C46: 914 | D46: 2977 | E46: 1253 | F46: 1696 | G46: 1639 | H46: 2283 | I46: 1670 | J46: 1402 | K46: 2139 | L46: 1252 | M46: 914 | N46: 3191 | O46: 2277
A47: arahy.Tifrunner.gnm1.ann1.4DJY3R | B47: 723 | C47: 1014 | D47: 150 | E47: 1139 | F47: 559 | G47: 1836 | H47: 772 | I47: 1404 | J47: 823 | K47: 590 | L47: 2385 | M47: 150 | N47: 2385 | O47: 2235
A48: arahy.Tifrunner.gnm1.ann1.EE5UNB | B48: 1974 | C48: 997 | D48: 2671 | E48: 1345 | F48: 709 | G48: 902 | H48: 739 | I48: 455 | J48: 737 | K48: 1762 | L48: 1872 | M48: 455 | N48: 2671 | O48: 2216
A49: arahy.Tifrunner.gnm1.ann1.X5CP5W | B49: 3223 | C49: 1130 | D49: 2460 | E49: 1271 | F49: 1707 | G49: 1285 | H49: 2103 | I49: 1483 | J49: 1376 | K49: 3130 | L49: 1017 | M49: 1017 | N49: 3223 | O49: 2206
A50: arahy.Tifrunner.gnm1.ann1.MG259H | B50: 655 | C50: 120 | D50: 2230 | E50: 182 | F50: 290 | G50: 229 | H50: 358 | I50: 217 | J50: 251 | K50: 708 | L50: 140 | M50: 120 | N50: 2230 | O50: 2110
A51: arahy.Tifrunner.gnm1.ann1.BU7NMG | B51: 1519 | C51: 282 | D51: 2345 | E51: 558 | F51: 844 | G51: 613 | H51: 1236 | I51: 547 | J51: 1066 | K51: 1133 | L51: 280 | M51: 280 | N51: 2345 | O51: 2065
A52: arahy.Tifrunner.gnm1.ann1.4PD0PP | B52: 2943 | C52: 889 | D52: 1113 | E52: 1387 | F52: 2182 | G52: 1643 | H52: 2397 | I52: 1777 | J52: 1476 | K52: 1747 | L52: 1248 | M52: 889 | N52: 2943 | O52: 2054
A53: arahy.Tifrunner.gnm1.ann1.040HS9 | B53: 2687 | C53: 900 | D53: 1238 | E53: 1476 | F53: 1890 | G53: 1392 | H53: 2615 | I53: 2904 | J53: 1845 | K53: 1852 | L53: 1042.8 | M53: 900.3 | N53: 2904.1 | O53: 2003.8
A54: arahy.Tifrunner.gnm1.ann1.JVEI5Y | B54: 1316 | C54: 278 | D54: 2282 | E54: 448 | F54: 642 | G54: 763 | H54: 1024 | I54: 680 | J54: 612 | K54: 1198 | L54: 323.5 | M54: 278.0 | N54: 2281.6 | O54: 2003.6
A55: arahy.Tifrunner.gnm1.ann1.D6LK4T | B55: 1586 | C55: 455 | D55: 2427 | E55: 603 | F55: 878 | G55: 669 | H55: 1180 | I55: 802 | J55: 757 | K55: 1312 | L55: 485.3 | M55: 454.7 | N55: 2426.6 | O55: 1971.9
A56: arahy.Tifrunner.gnm1.ann1.BTM1YE | B56: 2655 | C56: 746 | D56: 2708 | E56: 976 | F56: 1500 | G56: 1247 | H56: 2216 | I56: 1267 | J56: 1514 | K56: 1577 | L56: 817.8 | M56: 746.0 | N56: 2708.1 | O56: 1962.1
A57: arahy.Tifrunner.gnm1.ann1.L0R0IL | B57: 2502 | C57: 994 | D57: 2186 | E57: 1030 | F57: 1137 | G57: 1898 | H57: 1901 | I57: 2085 | J57: 1759 | K57: 2943 | L57: 1230.1 | M57: 994.0 | N57: 2943.2 | O57: 1949.2
A58: arahy.Tifrunner.gnm1.ann1.S3V5ZL | B58: 2097 | C58: 1476 | D58: 3205 | E58: 1383 | F58: 1271 | G58: 1505 | H58: 1731 | I58: 1811 | J58: 1378 | K58: 1847 | L58: 1740.8 | M58: 1270.6 | N58: 3204.8 | O58: 1934.2
A59: arahy.Tifrunner.gnm1.ann1.EMJ2JU | B59: 1719 | C59: 485 | D59: 2416 | E59: 687 | F59: 1026 | G59: 735 | H59: 1292 | I59: 822 | J59: 918 | K59: 1415 | L59: 503.8 | M59: 485.5 | N59: 2416.1 | O59: 1930.6
A60: arahy.Tifrunner.gnm1.ann1.J2LHWB | B60: 2806 | C60: 939 | D60: 2676 | E60: 1184 | F60: 1633 | G60: 1265 | H60: 2182 | I60: 1599 | J60: 1204 | K60: 1805 | L60: 1180.9 | M60: 939.3 | N60: 2806.2 | O60: 1867.0
A61: arahy.Tifrunner.gnm1.ann1.UXSD6Z | B61: 458 | C61: 30 | D61: 1896 | E61: 70 | F61: 62 | G61: 82 | H61: 89 | I61: 62 | J61: 216 | K61: 1051 | L61: 124.6 | M61: 30.0 | N61: 1896.2 | O61: 1866.2
A62: arahy.Tifrunner.gnm1.ann1.W8IC6S | B62: 1660 | C62: 723 | D62: 388 | E62: 922 | F62: 2091 | G62: 1397 | H62: 2234 | I62: 1953 | J62: 1383 | K62: 1103 | L62: 583.8 | M62: 388.3 | N62: 2234.5 | O62: 1846.2
A63: arahy.Tifrunner.gnm1.ann1.PX7M3V | B63: 2487 | C63: 653 | D63: 958 | E63: 802 | F63: 1308 | G63: 935 | H63: 1715 | I63: 1093 | J63: 912 | K63: 1084 | L63: 684.1 | M63: 652.9 | N63: 2486.6 | O63: 1833.7
A64: arahy.Tifrunner.gnm1.ann1.Y7HUGW | B64: 1791 | C64: 682 | D64: 2431 | E64: 993 | F64: 1547 | G64: 969 | H64: 1572 | I64: 1025 | J64: 1063 | K64: 1462 | L64: 760.1 | M64: 682.1 | N64: 2430.9 | O64: 1748.9
A65: arahy.Tifrunner.gnm1.ann1.TC1G7F | B65: 818 | C65: 682 | D65: 1921 | E65: 589 | F65: 174 | G65: 465 | H65: 432 | I65: 541 | J65: 190 | K65: 1524 | L65: 495.7 | M65: 173.8 | N65: 1921.3 | O65: 1747.5
A66: arahy.Tifrunner.gnm1.ann1.86F2TK | B66: 2494 | C66: 752 | D66: 1597 | E66: 1046 | F66: 1420 | G66: 1319 | H66: 1806 | I66: 1415 | J66: 1264 | K66: 1608 | L66: 972.4 | M66: 752.1 | N66: 2493.8 | O66: 1741.6
A67: arahy.Tifrunner.gnm1.ann1.8LQR2U | B67: 2787 | C67: 1057 | D67: 2249 | E67: 1301 | F67: 2132 | G67: 1389 | H67: 2399 | I67: 1459 | J67: 1890 | K67: 2056 | L67: 1076.7 | M67: =MIN(B67:L67) -> 1056.6 | N67: =MAX(B67:L67) -> 2786.5 | O67: =N67-M67 -> 1729.9
A68: arahy.Tifrunner.gnm1.ann1.1H9ESI | B68: 1917 | C68: 352 | D68: 1587 | E68: 292 | F68: 516 | G68: 362 | H68: 802 | I68: 523 | J68: 426 | K68: 781 | L68: 207.8 | M68: 207.8 | N68: 1916.8 | O68: 1709.0
A69: arahy.Tifrunner.gnm1.ann1.49ZYT6 | B69: 2325 | C69: 932 | D69: 2603 | E69: 1198 | F69: 1713 | G69: 1249 | H69: 1753 | I69: 1337 | J69: 1440 | K69: 1779 | L69: 1084.3 | M69: 932.4 | N69: 2603.1 | O69: 1670.7
A70: arahy.Tifrunner.gnm1.ann1.4KW7H9 | B70: 1286 | C70: 298 | D70: 1969 | E70: 454 | F70: 680 | G70: 793 | H70: 1024 | I70: 658 | J70: 684 | K70: 1076 | L70: 350.6 | M70: 298.2 | N70: 1968.6 | O70: 1670.4
A71: arahy.Tifrunner.gnm1.ann1.W5PE0L | B71: 1498 | C71: 410 | D71: 2077 | E71: 694 | F71: 857 | G71: 501 | H71: 561 | I71: 985 | J71: 663 | K71: 1065 | L71: 679.1 | M71: 410.1 | N71: 2076.7 | O71: 1666.5
A72: arahy.Tifrunner.gnm1.ann1.8DRC0W | B72: 1176 | C72: 323 | D72: 1905 | E72: 348 | F72: 421 | G72: 367 | H72: 649 | I72: 422 | J72: 308 | K72: 1227 | L72: 312.6 | M72: 308.3 | N72: 1904.8 | O72: 1596.5
A73: arahy.Tifrunner.gnm1.ann1.RLTX4G | B73: 1482 | C73: 671 | D73: 223 | E73: 757 | F73: 1226 | G73: 1200 | H73: 1792 | I73: 1211 | J73: 1468 | K73: 410 | L73: 415.8 | M73: 222.9 | N73: 1792.3 | O73: 1569.3
A74: arahy.Tifrunner.gnm1.ann1.30A6BG | B74: 1965 | C74: 669 | D74: 2218 | E74: 996 | F74: 1450 | G74: 1241 | H74: 1940 | I74: 1273 | J74: 1252 | K74: 1314 | L74: 923.0 | M74: 669.1 | N74: 2218.3 | O74: 1549.2
A75: arahy.Tifrunner.gnm1.ann1.AFZN0R | B75: 1044 | C75: 227 | D75: 1775 | E75: 296 | F75: 397 | G75: 379 | H75: 1095 | I75: 497 | J75: 554 | K75: 700 | L75: 258.4 | M75: 227.0 | N75: 1775.1 | O75: 1548.0
A76: arahy.Tifrunner.gnm1.ann1.09KNS5 | B76: 2612 | C76: 1126 | D76: 2400 | E76: 1318 | F76: 1921 | G76: 1427 | H76: 2191 | I76: 1674 | J76: 1666 | K76: 1792 | L76: 1222.0 | M76: 1125.6 | N76: 2612.2 | O76: 1486.6
A77: arahy.Tifrunner.gnm1.ann1.AMG8UC | B77: 1138 | C77: 323 | D77: 1794 | E77: 361 | F77: 487 | G77: 383 | H77: 680 | I77: 456 | J77: 360 | K77: 1135 | L77: 319.3 | M77: 319.3 | N77: 1793.5 | O77: 1474.2
A78: arahy.Tifrunner.gnm1.ann1.L9FPHH | B78: 816 | C78: 746 | D78: 58 | E78: 858 | F78: 977 | G78: 1075 | H78: 1496 | I78: 1035 | J78: 1297 | K78: 392 | L78: 982.9 | M78: 57.8 | N78: 1495.8 | O78: 1438.0
A79: arahy.Tifrunner.gnm1.ann1.WT2SCQ | B79: 557 | C79: 141 | D79: 1535 | E79: 166 | F79: 207 | G79: 176 | H79: 233 | I79: 198 | J79: 104 | K79: 689 | L79: 174.0 | M79: 104.3 | N79: 1535.2 | O79: 1430.9
A80: arahy.Tifrunner.gnm1.ann1.AAY07D | B80: 469 | C80: 106 | D80: 1507 | E80: 155 | F80: 183 | G80: 290 | H80: 337 | I80: 320 | J80: 177 | K80: 498 | L80: 158.3 | M80: 105.8 | N80: 1507.3 | O80: 1401.5
A81: arahy.Tifrunner.gnm1.ann1.14YEDZ | B81: 1354 | C81: 316 | D81: 1709 | E81: 532 | F81: 826 | G81: 574 | H81: 1166 | I81: 635 | J81: 1004 | K81: 1022 | L81: 409.2 | M81: 315.6 | N81: 1709.1 | O81: 1393.4
A82: arahy.Tifrunner.gnm1.ann1.FAAV28 | B82: 0 | C82: 0 | D82: 1383 | E82: 0 | F82: 0 | G82: 0 | H82: 0 | I82: 0 | J82: 0 | K82: 0 | L82: 0.1 | M82: 0.0 | N82: 1382.9 | O82: 1382.9
A83: arahy.Tifrunner.gnm1.ann1.FFQQ4A | B83: 1038 | C83: 873 | D83: 1434 | E83: 545 | F83: 262 | G83: 1148 | H83: 991 | I83: 1027 | J83: 533 | K83: 1523 | L83: 816.1 | M83: 262.0 | N83: 1523.1 | O83: 1261.1
A84: arahy.Tifrunner.gnm1.ann1.1HU4YV | B84: 634 | C84: 453 | D84: 1527 | E84: 379 | F84: 381 | G84: 501 | H84: 424 | I84: 455 | J84: 296 | K84: 934 | L84: 607.1 | M84: 296.1 | N84: 1526.6 | O84: 1230.6
A85: arahy.Tifrunner.gnm1.ann1.IPL01G | B85: 1567 | C85: 482 | D85: 781 | E85: 411 | F85: 564 | G85: 619 | H85: 922 | I85: 797 | J85: 376 | K85: 1161 | L85: 439.0 | M85: 376.4 | N85: 1567.0 | O85: 1190.6
A86: arahy.Tifrunner.gnm1.ann1.MV46JJ | B86: 708 | C86: 621 | D86: 161 | E86: 630 | F86: 439 | G86: 964 | H86: 822 | I86: 1237 | J86: 624 | K86: 640 | L86: 1329.2 | M86: 161.0 | N86: 1329.2 | O86: 1168.2
A87: arahy.Tifrunner.gnm1.ann1.MAQ2UP | B87: 35 | C87: 5 | D87: 76 | E87: 14 | F87: 3 | G87: 1144 | H87: 26 | I87: 19 | J87: 4 | K87: 79 | L87: 24.7 | M87: 2.8 | N87: 1144.0 | O87: 1141.2
A88: arahy.Tifrunner.gnm1.ann1.2JA7D7 | B88: 553 | C88: 113 | D88: 1209 | E88: 128 | F88: 140 | G88: 137 | H88: 184 | I88: 149 | J88: 78 | K88: 554 | L88: 125.4 | M88: 78.4 | N88: 1209.1 | O88: 1130.7
A89: arahy.Tifrunner.gnm1.ann1.RBYB13 | B89: 1540 | C89: 630 | D89: 1754 | E89: 816 | F89: 1247 | G89: 967 | H89: 1351 | I89: 915 | J89: 1109 | K89: 1107 | L89: 697.9 | M89: 629.9 | N89: 1754.2 | O89: 1124.2
A90: arahy.Tifrunner.gnm1.ann1.068WTC | B90: 176 | C90: 685 | D90: 42 | E90: 773 | F90: 353 | G90: 201 | H90: 351 | I90: 273 | J90: 458 | K90: 100 | L90: 1157.6 | M90: 42.3 | N90: 1157.6 | O90: 1115.3
A91: arahy.Tifrunner.gnm1.ann1.EM1IWQ | B91: 322 | C91: 381 | D91: 49 | E91: 535 | F91: 532 | G91: 647 | H91: 496 | I91: 889 | J91: 491 | K91: 165 | L91: 1132.1 | M91: 49.2 | N91: 1132.1 | O91: 1082.9
A92: arahy.Tifrunner.gnm1.ann1.QDSR7W | B92: 1271 | C92: 202 | D92: 866 | E92: 428 | F92: 682 | G92: 487 | H92: 853 | I92: 532 | J92: 551 | K92: 737 | L92: 271.9 | M92: 202.4 | N92: 1271.0 | O92: 1068.6
A93: arahy.Tifrunner.gnm1.ann1.L27P26 | B93: 754 | C93: 108 | D93: 1155 | E93: 225 | F93: 302 | G93: 264 | H93: 357 | I93: 258 | J93: 234 | K93: 758 | L93: 206.5 | M93: 107.9 | N93: 1155.3 | O93: 1047.4
A94: arahy.Tifrunner.gnm1.ann1.EUIG3C | B94: 1548 | C94: 1076 | D94: 907 | E94: 824 | F94: 599 | G94: 655 | H94: 677 | I94: 968 | J94: 546 | K94: 1274 | L94: 1210.2 | M94: 545.5 | N94: 1548.0 | O94: 1002.4
A95: arahy.Tifrunner.gnm1.ann1.VAT0VP | B95: 292 | C95: 769 | D95: 190 | E95: 747 | F95: 299 | G95: 308 | H95: 439 | I95: 489 | J95: 359 | K95: 272 | L95: 1177.2 | M95: 190.1 | N95: 1177.2 | O95: 987.1
A96: arahy.Tifrunner.gnm1.ann1.L4FE7K | B96: 1198 | C96: 224 | D96: 618 | E96: 326 | F96: 380 | G96: 989 | H96: 654 | I96: 738 | J96: 433 | K96: 1191 | L96: 406.6 | M96: 223.8 | N96: 1198.1 | O96: 974.3
A97: arahy.Tifrunner.gnm1.ann1.6DQ39T | B97: 994 | C97: 270 | D97: 730 | E97: 858 | F97: 1242 | G97: 620 | H97: 1140 | I97: 623 | J97: 744 | K97: 574 | L97: 387.5 | M97: 269.8 | N97: 1241.8 | O97: 972.0
A98: arahy.Tifrunner.gnm1.ann1.CVJ130 | B98: 940 | C98: 246 | D98: 185 | E98: 121 | F98: 160 | G98: 552 | H98: 1073 | I98: 566 | J98: 654 | K98: 588 | L98: 272.0 | M98: 120.7 | N98: 1073.1 | O98: 952.3
A99: arahy.Tifrunner.gnm1.ann1.2C7VNA | B99: 1623 | C99: 691 | D99: 680 | E99: 714 | F99: 1332 | G99: 824 | H99: 1397 | I99: 1012 | J99: 1359 | K99: 978 | L99: 793.6 | M99: 680.2 | N99: 1622.7 | O99: 942.6
A100: arahy.Tifrunner.gnm1.ann1.P0ATXC | B100: 279 | C100: 20 | D100: 959 | E100: 35 | F100: 40 | G100: 64 | H100: 83 | I100: 63 | J100: 25 | K100: 269 | L100: 87.9 | M100: 20.1 | N100: 959.2 | O100: 939.0
A101: arahy.Tifrunner.gnm1.ann1.63GP52 | B101: 1579 | C101: 710 | D101: 651 | E101: 713 | F101: 1252 | G101: 795 | H101: 1324 | I101: 991 | J101: 964 | K101: 912 | L101: 768.2 | M101: 651.0 | N101: 1578.9 | O101: 927.9
A102: arahy.Tifrunner.gnm1.ann1.1944SK | B102: 1053 | C102: 520 | D102: 354 | E102: 759 | F102: 1111 | G102: 983 | H102: 1266 | I102: 994 | J102: 992 | K102: 547 | L102: 736.5 | M102: 353.8 | N102: 1265.7 | O102: 911.9
A103: arahy.Tifrunner.gnm1.ann1.M3EH65 | B103: 385 | C103: 186 | D103: 1016 | E103: 150 | F103: 152 | G103: 113 | H103: 218 | I103: 212 | J103: 140 | K103: 459 | L103: 112.9 | M103: 112.9 | N103: 1015.7 | O103: 902.8
A104: arahy.Tifrunner.gnm1.ann1.LFL6K6 | B104: 965 | C104: 341 | D104: 1244 | E104: 447 | F104: 539 | G104: 598 | H104: 598 | I104: 698 | J104: 535 | K104: 1127 | L104: 444.2 | M104: 341.0 | N104: 1243.6 | O104: 902.6
A105: arahy.Tifrunner.gnm1.ann1.LPIU4G | B105: 408 | C105: 116 | D105: 977 | E105: 80 | F105: 116 | G105: 474 | H105: 390 | I105: 585 | J105: 118 | K105: 416 | L105: 153.8 | M105: 79.6 | N105: 976.9 | O105: 897.3
A106: arahy.Tifrunner.gnm1.ann1.GJPT5D | B106: 747 | C106: 577 | D106: 216 | E106: 687 | F106: 1010 | G106: 777 | H106: 1109 | I106: 831 | J106: 770 | K106: 420 | L106: 770.2 | M106: 215.6 | N106: 1109.4 | O106: 893.8
A107: arahy.Tifrunner.gnm1.ann1.QHM6UX | B107: 1087 | C107: 687 | D107: 350 | E107: 760 | F107: 991 | G107: 1032 | H107: 1232 | I107: 1192 | J107: 843 | K107: 715 | L107: 980.4 | M107: 349.7 | N107: 1232.3 | O107: 882.6
A108: arahy.Tifrunner.gnm1.ann1.TW40KZ | B108: 288 | C108: 35 | D108: 892 | E108: 36 | F108: 38 | G108: 20 | H108: 48 | I108: 29 | J108: 35 | K108: 409 | L108: 10.3 | M108: 10.3 | N108: 892.3 | O108: 881.9
A109: arahy.Tifrunner.gnm1.ann1.FDIY97 | B109: 193 | C109: 654 | D109: 51 | E109: 666 | F109: 397 | G109: 230 | H109: 382 | I109: 316 | J109: 539 | K109: 108 | L109: 903.3 | M109: 51.0 | N109: 903.3 | O109: 852.3
A110: arahy.Tifrunner.gnm1.ann1.114EL0 | B110: 503 | C110: 197 | D110: 852 | E110: 206 | F110: 168 | G110: 255 | H110: 370 | I110: 293 | J110: 85 | K110: 5 | L110: 387.7 | M110: 5.1 | N110: 852.3 | O110: 847.2
A111: arahy.Tifrunner.gnm1.ann1.5Z6Y8Z | B111: 1074 | C111: 649 | D111: 358 | E111: 726 | F111: 959 | G111: 1013 | H111: 1199 | I111: 1096 | J111: 831 | K111: 824 | L111: 904.1 | M111: 357.7 | N111: 1198.8 | O111: 841.0
A112: arahy.Tifrunner.gnm1.ann1.BA5EUQ | B112: 525 | C112: 620 | D112: 103 | E112: 646 | F112: 934 | G112: 613 | H112: 816 | I112: 739 | J112: 792 | K112: 225 | L112: 708.1 | M112: 103.0 | N112: 933.7 | O112: 830.7
A113: arahy.Tifrunner.gnm1.ann1.YZ1RNT | B113: 954 | C113: 581 | D113: 302 | E113: 654 | F113: 1108 | G113: 750 | H113: 1123 | I113: 802 | J113: 939 | K113: 698 | L113: 491.8 | M113: 301.7 | N113: 1123.3 | O113: 821.6
A114: arahy.Tifrunner.gnm1.ann1.S2QYAG | B114: 212 | C114: 438 | D114: 10 | E114: 501 | F114: 830 | G114: 526 | H114: 750 | I114: 559 | J114: 790 | K114: 52 | L114: 506.0 | M114: 9.5 | N114: 830.0 | O114: 820.5
A115: arahy.Tifrunner.gnm1.ann1.1R6Q1E | B115: 203 | C115: 65 | D115: 875 | E115: 59 | F115: 62 | G115: 109 | H115: 127 | I115: 74 | J115: 64 | K115: 351 | L115: 88.7 | M115: 58.8 | N115: 874.9 | O115: 816.1
A116: arahy.Tifrunner.gnm1.ann1.P56WT2 | B116: 461 | C116: 197 | D116: 993 | E116: 187 | F116: 181 | G116: 200 | H116: 326 | I116: 229 | J116: 225 | K116: 469 | L116: 199.5 | M116: 181.1 | N116: 993.0 | O116: 811.9
A117: arahy.Tifrunner.gnm1.ann1.YL5YHR | B117: 454 | C117: 108 | D117: 638 | E117: 131 | F117: 86 | G117: 400 | H117: 203 | I117: 402 | J117: 36 | K117: 848 | L117: 219.9 | M117: 36.3 | N117: 847.6 | O117: 811.2
A118: arahy.Tifrunner.gnm1.ann1.254A05 | B118: 261 | C118: 205 | D118: 1 | E118: 362 | F118: 783 | G118: 200 | H118: 518 | I118: 108 | J118: 554 | K118: 95 | L118: 106.4 | M118: 1.2 | N118: 782.5 | O118: 781.4
A119: arahy.Tifrunner.gnm1.ann1.JZ1PRS | B119: 794 | C119: 865 | D119: 657 | E119: 484 | F119: 477 | G119: 472 | H119: 1061 | I119: 282 | J119: 750 | K119: 788 | L119: 632.0 | M119: 281.8 | N119: 1060.7 | O119: 778.9
A120: arahy.Tifrunner.gnm1.ann1.7F1JQP | B120: 228 | C120: 801 | D120: 40 | E120: 306 | F120: 56 | G120: 155 | H120: 59 | I120: 127 | J120: 281 | K120: 90 | L120: 395.4 | M120: 40.1 | N120: 801.1 | O120: 761.0
A121: arahy.Tifrunner.gnm1.ann1.J9AJ01 | B121: 1266 | C121: 510 | D121: 930 | E121: 599 | F121: 943 | G121: 644 | H121: 1087 | I121: 676 | J121: 839 | K121: 911 | L121: 510.6 | M121: 509.9 | N121: 1266.3 | O121: 756.4
A122: arahy.Tifrunner.gnm1.ann1.UZ3GC4 | B122: 1062 | C122: 868 | D122: 472 | E122: 840 | F122: 1219 | G122: 756 | H122: 1096 | I122: 858 | J122: 920 | K122: 734 | L122: 724.2 | M122: 472.4 | N122: 1219.4 | O122: 747.0
A123: arahy.Tifrunner.gnm1.ann1.S0TT2Y | B123: 386 | C123: 156 | D123: 870 | E123: 130 | F123: 136 | G123: 166 | H123: 266 | I123: 171 | J123: 140 | K123: 452 | L123: 146.2 | M123: 130.2 | N123: 869.9 | O123: 739.7
A124: arahy.Tifrunner.gnm1.ann1.EBCB1I | B124: 946 | C124: 251 | D124: 989 | E124: 425 | F124: 542 | G124: 706 | H124: 818 | I124: 854 | J124: 447 | K124: 618 | L124: 491.7 | M124: 250.7 | N124: 988.8 | O124: 738.0
A125: arahy.Tifrunner.gnm1.ann1.PX59SB | B125: 68 | C125: 15 | D125: 752 | E125: 51 | F125: 71 | G125: 95 | H125: 63 | I125: 93 | J125: 28 | K125: 160 | L125: 23.9 | M125: 14.6 | N125: 752.5 | O125: 737.9
A126: arahy.Tifrunner.gnm1.ann1.B2GHU0 | B126: 95 | C126: 20 | D126: 213 | E126: 23 | F126: 13 | G126: 747 | H126: 49 | I126: 25 | J126: 10 | K126: 146 | L126: 32.4 | M126: 9.9 | N126: 746.7 | O126: 736.8
A127: arahy.Tifrunner.gnm1.ann1.V5WWJ8 | B127: 828 | C127: 211 | D127: 945 | E127: 310 | F127: 514 | G127: 356 | H127: 599 | I127: 333 | J127: 411 | K127: 528 | L127: 282.0 | M127: 210.8 | N127: 945.4 | O127: 734.5
A128: arahy.Tifrunner.gnm1.ann1.NTNX6Y | B128: 691 | C128: 48 | D128: 642 | E128: 165 | F128: 148 | G128: 95 | H128: 224 | I128: 81 | J128: 0 | K128: 733 | L128: 117.3 | M128: 0.0 | N128: 733.5 | O128: 733.5
A129: arahy.Tifrunner.gnm1.ann1.DUU85D | B129: 1049 | C129: 596 | D129: 515 | E129: 708 | F129: 1147 | G129: 785 | H129: 1217 | I129: 830 | J129: 958 | K129: 735 | L129: 604.5 | M129: 514.6 | N129: 1216.7 | O129: 702.1
A130: arahy.Tifrunner.gnm1.ann1.0WI4AR | B130: 115 | C130: 20 | D130: 710 | E130: 20 | F130: 58 | G130: 14 | H130: 46 | I130: 155 | J130: 28 | K130: 208 | L130: 10.6 | M130: 10.6 | N130: 709.8 | O130: 699.2
A131: arahy.Tifrunner.gnm1.ann1.5HS8E4 | B131: 125 | C131: 14 | D131: 690 | E131: 18 | F131: 20 | G131: 8 | H131: 17 | I131: 11 | J131: 21 | K131: 158 | L131: 3.3 | M131: =MIN(B131:L131) -> 3.3 | N131: =MAX(B131:L131) -> 689.9 | O131: =N131-M131 -> 686.5
A132: arahy.Tifrunner.gnm1.ann1.AR01JJ | B132: 419 | C132: 424 | D132: 0 | E132: 490 | F132: 646 | G132: 523 | H132: 671 | I132: 562 | J132: 574 | K132: 180 | L132: 592.3 | M132: 0.0 | N132: 671.3 | O132: 671.3
A133: arahy.Tifrunner.gnm1.ann1.EXPS8P | B133: 320 | C133: 137 | D133: 807 | E133: 140 | F133: 156 | G133: 238 | H133: 302 | I133: 254 | J133: 158 | K133: 500 | L133: 290.0 | M133: 136.9 | N133: 806.7 | O133: 669.7
A134: arahy.Tifrunner.gnm1.ann1.1CH3A3 | B134: 210 | C134: 64 | D134: 709 | E134: 61 | F134: 54 | G134: 65 | H134: 77 | I134: 77 | J134: 43 | K134: 294 | L134: 61.5 | M134: 43.0 | N134: 709.2 | O134: 666.3
A135: arahy.Tifrunner.gnm1.ann1.Q5YJQ9 | B135: 528 | C135: 426 | D135: 95 | E135: 455 | F135: 507 | G135: 616 | H135: 687 | I135: 752 | J135: 447 | K135: 313 | L135: 605.3 | M135: 94.7 | N135: 752.5 | O135: 657.8
A136: arahy.Tifrunner.gnm1.ann1.VI5MD4 | B136: 478 | C136: 421 | D136: 106 | E136: 396 | F136: 673 | G136: 641 | H136: 759 | I136: 680 | J136: 637 | K136: 371 | L136: 443.6 | M136: 105.6 | N136: 758.7 | O136: 653.1
A137: arahy.Tifrunner.gnm1.ann1.T7FQKJ | B137: 43 | C137: 390 | D137: 16 | E137: 583 | F137: 416 | G137: 270 | H137: 254 | I137: 362 | J137: 204 | K137: 9 | L137: 659.6 | M137: 9.3 | N137: 659.6 | O137: 650.3
A138: arahy.Tifrunner.gnm1.ann1.MVQ7LV | B138: 870 | C138: 220 | D138: 450 | E138: 332 | F138: 549 | G138: 418 | H138: 731 | I138: 444 | J138: 422 | K138: 430 | L138: 252.6 | M138: 220.2 | N138: 870.4 | O138: 650.2
A139: arahy.Tifrunner.gnm1.ann1.4JTK6F | B139: 631 | C139: 469 | D139: 225 | E139: 582 | F139: 820 | G139: 641 | H139: 875 | I139: 741 | J139: 661 | K139: 448 | L139: 654.3 | M139: 225.4 | N139: 874.6 | O139: 649.2
A140: arahy.Tifrunner.gnm1.ann1.5DA507 | B140: 475 | C140: 369 | D140: 50 | E140: 391 | F140: 528 | G140: 448 | H140: 698 | I140: 530 | J140: 610 | K140: 276 | L140: 566.6 | M140: 49.8 | N140: 698.1 | O140: 648.3
A141: arahy.Tifrunner.gnm1.ann1.P4QE4D | B141: 653 | C141: 148 | D141: 793 | E141: 232 | F141: 269 | G141: 278 | H141: 358 | I141: 407 | J141: 281 | K141: 425 | L141: 203.3 | M141: 147.6 | N141: 793.4 | O141: 645.8
A142: arahy.Tifrunner.gnm1.ann1.39S8LV | B142: 57 | C142: 414 | D142: 348 | E142: 395 | F142: 517 | G142: 577 | H142: 700 | I142: 585 | J142: 491 | K142: 619 | L142: 445.0 | M142: 56.7 | N142: 699.8 | O142: 643.2
A143: arahy.Tifrunner.gnm1.ann1.HNK90J | B143: 422 | C143: 269 | D143: 610 | E143: 356 | F143: 439 | G143: 909 | H143: 798 | I143: 886 | J143: 845 | K143: 566 | L143: 368.1 | M143: 269.1 | N143: 909.0 | O143: 639.9
A144: arahy.Tifrunner.gnm1.ann1.R2H4JL | B144: 145 | C144: 407 | D144: 26 | E144: 162 | F144: 178 | G144: 220 | H144: 657 | I144: 446 | J144: 214 | K144: 149 | L144: 179.4 | M144: 26.0 | N144: 657.1 | O144: 631.1
A145: arahy.Tifrunner.gnm1.ann1.NN0MZU | B145: 949 | C145: 322 | D145: 661 | E145: 404 | F145: 499 | G145: 666 | H145: 728 | I145: 688 | J145: 452 | K145: 843 | L145: 510.0 | M145: 321.7 | N145: 948.7 | O145: 627.0
A146: arahy.Tifrunner.gnm1.ann1.M2MMUV | B146: 190 | C146: 72 | D146: 682 | E146: 70 | F146: 66 | G146: 65 | H146: 70 | I146: 69 | J146: 58 | K146: 297 | L146: 60.6 | M146: 58.5 | N146: 681.7 | O146: 623.3
A147: arahy.Tifrunner.gnm1.ann1.5AS0RC | B147: 218 | C147: 62 | D147: 653 | E147: 65 | F147: 54 | G147: 71 | H147: 79 | I147: 80 | J147: 31 | K147: 424 | L147: 73.6 | M147: 31.4 | N147: 652.5 | O147: 621.1
A148: arahy.Tifrunner.gnm1.ann1.E4P10T | B148: 506 | C148: 387 | D148: 81 | E148: 433 | F148: 618 | G148: 481 | H148: 702 | I148: 522 | J148: 459 | K148: 280 | L148: 462.7 | M148: 81.5 | N148: 702.2 | O148: 620.8
A149: arahy.Tifrunner.gnm1.ann1.B9ILCP | B149: 347 | C149: 259 | D149: 772 | E149: 251 | F149: 168 | G149: 175 | H149: 311 | I149: 227 | J149: 233 | K149: 463 | L149: 281.9 | M149: 167.6 | N149: 772.0 | O149: 604.4
A150: arahy.Tifrunner.gnm1.ann1.V9JC55 | B150: 683 | C150: 123 | D150: 432 | E150: 89 | F150: 141 | G150: 113 | H150: 144 | I150: 172 | J150: 79 | K150: 592 | L150: 163.7 | M150: 79.2 | N150: 682.8 | O150: 603.6
A151: arahy.Tifrunner.gnm1.ann1.IHZE0I | B151: 195 | C151: 56 | D151: 643 | E151: 56 | F151: 51 | G151: 67 | H151: 77 | I151: 79 | J151: 41 | K151: 301 | L151: 61.1 | M151: 41.1 | N151: 643.4 | O151: 602.4
A152: arahy.Tifrunner.gnm1.ann1.W9U8CY | B152: 190 | C152: 469 | D152: 126 | E152: 414 | F152: 466 | G152: 540 | H152: 432 | I152: 492 | J152: 379 | K152: 122 | L152: 723.6 | M152: 122.4 | N152: 723.6 | O152: 601.2
A153: arahy.Tifrunner.gnm1.ann1.KU7HBQ | B153: 438 | C153: 224 | D153: 759 | E153: 316 | F153: 359 | G153: 301 | H153: 402 | I153: 407 | J153: 169 | K153: 435 | L153: 295.0 | M153: 169.3 | N153: 758.7 | O153: 589.4
A154: arahy.Tifrunner.gnm1.ann1.0DV40D | B154: 195 | C154: 228 | D154: 13 | E154: 202 | F154: 230 | G154: 390 | H154: 317 | I154: 602 | J154: 354 | K154: 71 | L154: 251.9 | M154: 13.4 | N154: 601.9 | O154: 588.5
A155: arahy.Tifrunner.gnm1.ann1.K2480A | B155: 0 | C155: 0 | D155: 585 | E155: 0 | F155: 0 | G155: 0 | H155: 0 | I155: 0 | J155: 0 | K155: 0 | L155: 0.0 | M155: 0.0 | N155: 585.2 | O155: 585.2
A156: arahy.Tifrunner.gnm1.ann1.V1P8P6 | B156: 911 | C156: 326 | D156: 474 | E156: 435 | F156: 547 | G156: 618 | H156: 743 | I156: 689 | J156: 454 | K156: 849 | L156: 499.7 | M156: 326.0 | N156: 911.0 | O156: 585.0
A157: arahy.Tifrunner.gnm1.ann1.EH8QHL | B157: 743 | C157: 330 | D157: 272 | E157: 503 | F157: 856 | G157: 512 | H157: 756 | I157: 545 | J157: 721 | K157: 410 | L157: 394.2 | M157: 271.9 | N157: 855.7 | O157: 583.9
A158: arahy.Tifrunner.gnm1.ann1.PI6GK2 | B158: 844 | C158: 260 | D158: 573 | E158: 377 | F158: 562 | G158: 466 | H158: 631 | I158: 410 | J158: 403 | K158: 634 | L158: 306.6 | M158: 260.5 | N158: 843.5 | O158: 583.0
A159: arahy.Tifrunner.gnm1.ann1.5GPW5B | B159: 511 | C159: 723 | D159: 665 | E159: 735 | F159: 638 | G159: 436 | H159: 536 | I159: 522 | J159: 671 | K159: 551 | L159: 1017.9 | M159: 436.2 | N159: 1017.9 | O159: 581.7
A160: arahy.Tifrunner.gnm1.ann1.M6YT3U | B160: 733 | C160: 540 | D160: 407 | E160: 562 | F160: 733 | G160: 628 | H160: 982 | I160: 745 | J160: 690 | K160: 616 | L160: 633.0 | M160: 406.9 | N160: 981.9 | O160: 575.0
A161: arahy.Tifrunner.gnm1.ann1.N8DZQ8 | B161: 810 | C161: 293 | D161: 685 | E161: 358 | F161: 573 | G161: 302 | H161: 809 | I161: 564 | J161: 620 | K161: 542 | L161: 236.3 | M161: 236.3 | N161: 810.2 | O161: 573.9
A162: arahy.Tifrunner.gnm1.ann1.EZF9IN | B162: 791 | C162: 519 | D162: 424 | E162: 552 | F162: 736 | G162: 642 | H162: 993 | I162: 695 | J162: 702 | K162: 651 | L162: 606.4 | M162: 424.3 | N162: 992.5 | O162: 568.3
A163: arahy.Tifrunner.gnm1.ann1.QU1D1P | B163: 263 | C163: 141 | D163: 210 | E163: 224 | F163: 181 | G163: 706 | H163: 431 | I163: 631 | J163: 225 | K163: 242 | L163: 407.6 | M163: 140.7 | N163: 705.7 | O163: 565.0
A164: arahy.Tifrunner.gnm1.ann1.4721MN | B164: 574 | C164: 384 | D164: 11 | E164: 191 | F164: 38 | G164: 82 | H164: 73 | I164: 95 | J164: 196 | K164: 191 | L164: 169.9 | M164: 10.8 | N164: 574.2 | O164: 563.4
A165: arahy.Tifrunner.gnm1.ann1.L2XBQ2 | B165: 631 | C165: 363 | D165: 134 | E165: 400 | F165: 575 | G165: 433 | H165: 695 | I165: 553 | J165: 427 | K165: 369 | L165: 478.8 | M165: 133.8 | N165: 694.6 | O165: 560.7
A166: arahy.Tifrunner.gnm1.ann1.03QWZ4 | B166: 552 | C166: 3 | D166: 372 | E166: 3 | F166: 2 | G166: 274 | H166: 449 | I166: 421 | J166: 458 | K166: 556 | L166: 488.2 | M166: 2.3 | N166: 556.4 | O166: 554.1
A167: arahy.Tifrunner.gnm1.ann1.GNE51Z | B167: 290 | C167: 309 | D167: 664 | E167: 159 | F167: 111 | G167: 206 | H167: 221 | I167: 237 | J167: 239 | K167: 559 | L167: 169.3 | M167: 111.4 | N167: 663.6 | O167: 552.2
A168: arahy.Tifrunner.gnm1.ann1.CW3FX9 | B168: 634 | C168: 288 | D168: 114 | E168: 320 | F168: 546 | G168: 336 | H168: 662 | I168: 388 | J168: 336 | K168: 254 | L168: 265.6 | M168: 114.4 | N168: 662.4 | O168: 548.1
A169: arahy.Tifrunner.gnm1.ann1.KHD191 | B169: 550 | C169: 245 | D169: 92 | E169: 302 | F169: 212 | G169: 531 | H169: 631 | I169: 461 | J169: 353 | K169: 322 | L169: 391.8 | M169: 91.8 | N169: 630.6 | O169: 538.8
A170: arahy.Tifrunner.gnm1.ann1.VHAI7W | B170: 720 | C170: 193 | D170: 539 | E170: 244 | F170: 360 | G170: 256 | H170: 449 | I170: 276 | J170: 265 | K170: 415 | L170: 216.9 | M170: 192.6 | N170: 720.1 | O170: 527.6
A171: arahy.Tifrunner.gnm1.ann1.ASG1PZ | B171: 228 | C171: 107 | D171: 599 | E171: 91 | F171: 74 | G171: 94 | H171: 117 | I171: 124 | J171: 117 | K171: 216 | L171: 91.4 | M171: 73.9 | N171: 598.8 | O171: 524.8
A172: arahy.Tifrunner.gnm1.ann1.I41NMG | B172: 598 | C172: 197 | D172: 177 | E172: 194 | F172: 103 | G172: 417 | H172: 185 | I172: 176 | J172: 80 | K172: 228 | L172: 276.2 | M172: 79.7 | N172: 598.0 | O172: 518.3
A173: arahy.Tifrunner.gnm1.ann1.2FSM7R | B173: 353 | C173: 162 | D173: 675 | E173: 166 | F173: 160 | G173: 190 | H173: 232 | I173: 228 | J173: 159 | K173: 371 | L173: 232.4 | M173: 159.4 | N173: 675.3 | O173: 515.9
A174: arahy.Tifrunner.gnm1.ann1.L4UE4C | B174: 518 | C174: 270 | D174: 102 | E174: 312 | F174: 470 | G174: 502 | H174: 615 | I174: 478 | J174: 367 | K174: 304 | L174: 382.3 | M174: 102.0 | N174: 614.6 | O174: 512.6
A175: arahy.Tifrunner.gnm1.ann1.SEKD5X | B175: 410 | C175: 210 | D175: 667 | E175: 157 | F175: 165 | G175: 196 | H175: 287 | I175: 260 | J175: 193 | K175: 369 | L175: 191.5 | M175: 156.9 | N175: 667.4 | O175: 510.5
A176: arahy.Tifrunner.gnm1.ann1.N07IEU | B176: 245 | C176: 89 | D176: 582 | E176: 122 | F176: 151 | G176: 99 | H176: 137 | I176: 109 | J176: 112 | K176: 254 | L176: 73.7 | M176: 73.7 | N176: 582.0 | O176: 508.2
A177: arahy.Tifrunner.gnm1.ann1.F6CLKD | B177: 464 | C177: 406 | D177: 112 | E177: 451 | F177: 616 | G177: 473 | H177: 596 | I177: 445 | J177: 509 | K177: 319 | L177: 544.5 | M177: 111.8 | N177: 616.2 | O177: 504.4
A178: arahy.Tifrunner.gnm1.ann1.L424UK | B178: 118 | C178: 32 | D178: 519 | E178: 38 | F178: 31 | G178: 42 | H178: 41 | I178: 45 | J178: 19 | K178: 238 | L178: 47.5 | M178: 18.8 | N178: 519.2 | O178: 500.4
A179: arahy.Tifrunner.gnm1.ann1.2W1XFU | B179: 249 | C179: 0 | D179: 500 | E179: 186 | F179: 222 | G179: 170 | H179: 0 | I179: 219 | J179: 104 | K179: 249 | L179: 158.7 | M179: 0.1 | N179: 500.1 | O179: 500.0
A180: arahy.Tifrunner.gnm1.ann1.DJM1RY | B180: 666 | C180: 174 | D180: 601 | E180: 278 | F180: 460 | G180: 312 | H180: 533 | I180: 290 | J180: 376 | K180: 428 | L180: 250.2 | M180: 174.5 | N180: 666.5 | O180: 492.0
A181: arahy.Tifrunner.gnm1.ann1.T78K8J | B181: 412 | C181: 563 | D181: 75 | E181: 299 | F181: 75 | G181: 169 | H181: 93 | I181: 227 | J181: 318 | K181: 218 | L181: 408.5 | M181: 74.6 | N181: 562.9 | O181: 488.3
A182: arahy.Tifrunner.gnm1.ann1.9IV7G6 | B182: 166 | C182: 349 | D182: 99 | E182: 337 | F182: 393 | G182: 454 | H182: 437 | I182: 504 | J182: 369 | K182: 96 | L182: 577.8 | M182: 96.3 | N182: 577.8 | O182: 481.5
A183: arahy.Tifrunner.gnm1.ann1.YL3Z6V | B183: 601 | C183: 731 | D183: 695 | E183: 657 | F183: 403 | G183: 304 | H183: 409 | I183: 435 | J183: 506 | K183: 598 | L183: 782.8 | M183: 303.8 | N183: 782.8 | O183: 479.0
A184: arahy.Tifrunner.gnm1.ann1.0GG7BD | B184: 306 | C184: 311 | D184: 84 | E184: 364 | F184: 374 | G184: 507 | H184: 502 | I184: 563 | J184: 367 | K184: 220 | L184: 496.9 | M184: 83.8 | N184: 562.7 | O184: 478.8
A185: arahy.Tifrunner.gnm1.ann1.XE2WF0 | B185: 635 | C185: 412 | D185: 890 | E185: 517 | F185: 701 | G185: 563 | H185: 678 | I185: 569 | J185: 647 | K185: 541 | L185: 487.3 | M185: 412.3 | N185: 890.2 | O185: 477.8
A186: arahy.Tifrunner.gnm1.ann1.PLZ2LX | B186: 700 | C186: 319 | D186: 275 | E186: 453 | F186: 751 | G186: 458 | H186: 694 | I186: 501 | J186: 619 | K186: 396 | L186: 348.1 | M186: 275.2 | N186: 750.7 | O186: 475.4
A187: arahy.Tifrunner.gnm1.ann1.FVU3TQ | B187: 641 | C187: 735 | D187: 291 | E187: 662 | F187: 727 | G187: 630 | H187: 720 | I187: 759 | J187: 658 | K187: 446 | L187: 730.4 | M187: 291.3 | N187: 759.4 | O187: 468.1
A188: arahy.Tifrunner.gnm1.ann1.THHQ0A | B188: 461 | C188: 256 | D188: 722 | E188: 317 | F188: 381 | G188: 342 | H188: 442 | I188: 458 | J188: 560 | K188: 427 | L188: 341.4 | M188: 256.1 | N188: 722.3 | O188: 466.3
A189: arahy.Tifrunner.gnm1.ann1.LJEZ0V | B189: 64 | C189: 56 | D189: 55 | E189: 84 | F189: 54 | G189: 89 | H189: 171 | I189: 146 | J189: 518 | K189: 68 | L189: 183.0 | M189: 53.7 | N189: 518.2 | O189: 464.5
A190: arahy.Tifrunner.gnm1.ann1.EB48YM | B190: 207 | C190: 42 | D190: 507 | E190: 58 | F190: 85 | G190: 153 | H190: 153 | I190: 150 | J190: 82 | K190: 193 | L190: 58.0 | M190: 42.4 | N190: 506.6 | O190: 464.2
A191: arahy.Tifrunner.gnm1.ann1.R68HYG | B191: 316 | C191: 131 | D191: 592 | E191: 180 | F191: 281 | G191: 132 | H191: 210 | I191: 156 | J191: 243 | K191: 396 | L191: 129.8 | M191: 129.8 | N191: 592.2 | O191: 462.3
A192: arahy.Tifrunner.gnm1.ann1.6374NN | B192: 69 | C192: 434 | D192: 31 | E192: 364 | F192: 40 | G192: 9 | H192: 63 | I192: 34 | J192: 261 | K192: 19 | L192: 465.2 | M192: 9.4 | N192: 465.2 | O192: 455.7
A193: arahy.Tifrunner.gnm1.ann1.IT57YE | B193: 189 | C193: 97 | D193: 528 | E193: 78 | F193: 83 | G193: 79 | H193: 99 | I193: 105 | J193: 82 | K193: 246 | L193: 72.3 | M193: 72.3 | N193: 527.7 | O193: 455.4
A194: arahy.Tifrunner.gnm1.ann1.K5MJK0 | B194: 42 | C194: 418 | D194: 22 | E194: 415 | F194: 28 | G194: 7 | H194: 38 | I194: 22 | J194: 214 | K194: 14 | L194: 462.0 | M194: 6.8 | N194: 462.0 | O194: 455.3
A195: arahy.Tifrunner.gnm1.ann1.QR9HB8 | B195: 394 | C195: 234 | D195: 619 | E195: 181 | F195: 171 | G195: 223 | H195: 273 | I195: 281 | J195: 221 | K195: 407 | L195: 215.9 | M195: =MIN(B195:L195) -> 170.6 | N195: =MAX(B195:L195) -> 618.9 | O195: =N195-M195 -> 448.3
A196: arahy.Tifrunner.gnm1.ann1.8F004F | B196: 468 | C196: 557 | D196: 879 | E196: 588 | F196: 519 | G196: 508 | H196: 460 | I196: 431 | J196: 549 | K196: 620 | L196: 837.5 | M196: 431.2 | N196: 879.1 | O196: 447.9
A197: arahy.Tifrunner.gnm1.ann1.UN6PZ5 | B197: 399 | C197: 222 | D197: 576 | E197: 174 | F197: 131 | G197: 186 | H197: 190 | I197: 182 | J197: 144 | K197: 562 | L197: 237.8 | M197: 130.9 | N197: 575.9 | O197: 445.0
A198: arahy.Tifrunner.gnm1.ann1.1UPR0X | B198: 520 | C198: 165 | D198: 249 | E198: 130 | F198: 75 | G198: 276 | H198: 199 | I198: 129 | J198: 167 | K198: 203 | L198: 146.0 | M198: 74.7 | N198: 519.5 | O198: 444.8
A199: arahy.Tifrunner.gnm1.ann1.MT3DPF | B199: 0 | C199: 441 | D199: 4 | E199: 0 | F199: 0 | G199: 0 | H199: 0 | I199: 0 | J199: 2 | K199: 0 | L199: 0.3 | M199: 0.0 | N199: 441.3 | O199: 441.3
A200: arahy.Tifrunner.gnm1.ann1.MU25MQ | B200: 479 | C200: 158 | D200: 582 | E200: 174 | F200: 216 | G200: 197 | H200: 265 | I200: 208 | J200: 142 | K200: 452 | L200: 193.0 | M200: 142.3 | N200: 581.8 | O200: 439.5
... 4300 more rows

Sheet Sheet1
A1: gene | B1: Sample-1_FPKM | C1: Sample-2_FPKM | D1: Sample-3_FPKM | E1: Sample-4_FPKM | F1: Sample-5_FPKM | G1: Sample-6_FPKM | H1: Sample-7_FPKM | I1: Sample-8_FPKM | J1: Sample-9_FPKM | K1: Sample-10_FPKM | L1: Sample-11_FPKM
A2: arahy.Tifrunner.gnm1.ann1.0002EG | B2: 0 | C2: 0 | D2: 0 | E2: 0 | F2: 0 | G2: 0 | H2: 0 | I2: 0 | J2: 0 | K2: 0 | L2: 0
A3: arahy.Tifrunner.gnm1.ann1.0003EL | B3: 6.78288 | C3: 4.17417 | D3: 16.133 | E3: 3.12337 | F3: 3.84764 | G3: 7.55873 | H3: 6.02875 | I3: 3.80902 | J3: 6.1353 | K3: 7.45009 | L3: 4.48544
A4: arahy.Tifrunner.gnm1.ann1.0008XH | B4: 0.834775 | C4: 0.898927 | D4: 2.44347 | E4: 0.617859 | F4: 2.25552 | G4: 0.468136 | H4: 0.953192 | I4: 0.38773 | J4: 0.875344 | K4: 0.551359 | L4: 0.842132
A5: arahy.Tifrunner.gnm1.ann1.002YPW | B5: 0 | C5: 0 | D5: 0 | E5: 0 | F5: 0 | G5: 0 | H5: 0 | I5: 0 | J5: 0 | K5: 0 | L5: 0
A6: arahy.Tifrunner.gnm1.ann1.0034KJ | B6: 37.6852 | C6: 39.5039 | D6: 10.9818 | E6: 35.5601 | F6: 29.7281 | G6: 31.7745 | H6: 52.2021 | I6: 38.6858 | J6: 0 | K6: 0.0638985 | L6: 28.169
A7: arahy.Tifrunner.gnm1.ann1.0046K4 | B7: 0 | C7: 0 | D7: 0 | E7: 0 | F7: 0 | G7: 0 | H7: 0 | I7: 0 | J7: 0 | K7: 0 | L7: 0
A8: arahy.Tifrunner.gnm1.ann1.004CIH | B8: 5.69038 | C8: 4.00438 | D8: 5.95428 | E8: 4.37862 | F8: 3.18561 | G8: 2.54847 | H8: 3.09058 | I8: 3.97591 | J8: 3.60745 | K8: 5.77332 | L8: 3.99295
A9: arahy.Tifrunner.gnm1.ann1.004J0D | B9: 37.0598 | C9: 25.5455 | D9: 69.1071 | E9: 26.6437 | F9: 23.1334 | G9: 19.2918 | H9: 22.2625 | I9: 19.4002 | J9: 28.1875 | K9: 38.3779 | L9: 14.4547
A10: arahy.Tifrunner.gnm1.ann1.005C3Q | B10: 0 | C10: 2.47698 | D10: 1.34496 | E10: 2.30382 | F10: 2.0955 | G10: 2.32394 | H10: 1.58224 | I10: 2.16774 | J10: 2.70985 | K10: 0.991749 | L10: 2.36573
A11: arahy.Tifrunner.gnm1.ann1.005S9P | B11: 0 | C11: 0 | D11: 0 | E11: 0 | F11: 0 | G11: 0 | H11: 0 | I11: 0 | J11: 0 | K11: 0 | L11: 0
A12: arahy.Tifrunner.gnm1.ann1.0067NC | B12: 7.18962 | C12: 13.5746 | D12: 7.99961 | E12: 12.1327 | F12: 8.83932 | G12: 9.41693 | H12: 13.4697 | I12: 9.23789 | J12: 14.4274 | K12: 9.54893 | L12: 28.8486
A13: arahy.Tifrunner.gnm1.ann1.006X4N | B13: 0 | C13: 0.85561 | D13: 0 | E13: 0 | F13: 0.356104 | G13: 1.65408 | H13: 1.3446 | I13: 2.15073 | J13: 0.731875 | K13: 0 | L13: 0
A14: arahy.Tifrunner.gnm1.ann1.006XS9 | B14: 0.789138 | C14: 1.41624 | D14: 1.45062 | E14: 0.913558 | F14: 0.941575 | G14: 0.94635 | H14: 1.71802 | I14: 0.831069 | J14: 0.9486 | K14: 1.03847 | L14: 0.611433
A15: arahy.Tifrunner.gnm1.ann1.0079YX | B15: 5.08562 | C15: 1.72561 | D15: 10.0588 | E15: 0.853497 | F15: 0.965815 | G15: 1.8682 | H15: 2.07836 | I15: 1.29325 | J15: 1.21115 | K15: 4.79085 | L15: 2.29466
A16: arahy.Tifrunner.gnm1.ann1.008EVY | B16: 0.143726 | C16: 0 | D16: 0 | E16: 0.123177 | F16: 0.372315 | G16: 0 | H16: 0 | I16: 0 | J16: 0 | K16: 0.763488 | L16: 0.105915
A17: arahy.Tifrunner.gnm1.ann1.0093F6 | B17: 2.55741 | C17: 2.16194 | D17: 3.96222 | E17: 1.41542 | F17: 1.41109 | G17: 2.54523 | H17: 2.1483 | I17: 2.38498 | J17: 2.28826 | K17: 2.09216 | L17: 2.14106
A18: arahy.Tifrunner.gnm1.ann1.009NTH | B18: 0 | C18: 0 | D18: 0 | E18: 0 | F18: 0 | G18: 0 | H18: 0 | I18: 0 | J18: 0 | K18: 0 | L18: 0
A19: arahy.Tifrunner.gnm1.ann1.009U6B | B19: 1.65341 | C19: 2.28022 | D19: 2.70562 | E19: 2.98502 | F19: 3.00861 | G19: 2.51823 | H19: 2.62929 | I19: 1.69293 | J19: 3.57543 | K19: 1.99588 | L19: 1.06597
A20: arahy.Tifrunner.gnm1.ann1.00A0K2 | B20: 0 | C20: 0 | D20: 0 | E20: 0 | F20: 0 | G20: 0 | H20: 0 | I20: 0 | J20: 0 | K20: 0 | L20: 0
A21: arahy.Tifrunner.gnm1.ann1.00A31M | B21: 5.90314 | C21: 2.67168 | D21: 6.74196 | E21: 2.4445 | F21: 2.57868 | G21: 5.92245 | H21: 4.26929 | I21: 4.5512 | J21: 4.39782 | K21: 0.0449384 | L21: 0
A22: arahy.Tifrunner.gnm1.ann1.00ABQL | B22: 0 | C22: 0 | D22: 0 | E22: 0 | F22: 0 | G22: 0 | H22: 0 | I22: 0 | J22: 0 | K22: 0 | L22: 0
A23: arahy.Tifrunner.gnm1.ann1.00AX0T | B23: 0 | C23: 0 | D23: 0 | E23: 0 | F23: 0 | G23: 0 | H23: 0.0116555 | I23: 0 | J23: 0.0683799 | K23: 0 | L23: 0
A24: arahy.Tifrunner.gnm1.ann1.00B185 | B24: 0.9236 | C24: 1.41614 | D24: 1.12653 | E24: 2.58447 | F24: 3.17735 | G24: 1.59841 | H24: 1.62567 | I24: 2.34165 | J24: 3.87786 | K24: 1.11809 | L24: 2.59478
A25: arahy.Tifrunner.gnm1.ann1.00BQAA | B25: 0 | C25: 0 | D25: 0 | E25: 0 | F25: 0 | G25: 0 | H25: 0 | I25: 0 | J25: 0 | K25: 0 | L25: 0
A26: arahy.Tifrunner.gnm1.ann1.00CGR0 | B26: 0 | C26: 0 | D26: 0 | E26: 0 | F26: 0 | G26: 0 | H26: 0 | I26: 0 | J26: 0 | K26: 0 | L26: 0
A27: arahy.Tifrunner.gnm1.ann1.00D9K6 | B27: 0 | C27: 0 | D27: 0 | E27: 0.0848278 | F27: 0 | G27: 0 | H27: 0 | I27: 0 | J27: 0 | K27: 0 | L27: 0
A28: arahy.Tifrunner.gnm1.ann1.00DB5A | B28: 2.12371 | C28: 3.19452 | D28: 0 | E28: 0.586707 | F28: 1.72421 | G28: 0.758152 | H28: 0.747297 | I28: 0.799032 | J28: 2.8956 | K28: 0.439471 | L28: 1.23657
A29: arahy.Tifrunner.gnm1.ann1.00DCJZ | B29: 0 | C29: 0 | D29: 0 | E29: 0 | F29: 0 | G29: 0 | H29: 0 | I29: 0 | J29: 0 | K29: 0 | L29: 0
A30: arahy.Tifrunner.gnm1.ann1.00E8H2 | B30: 0 | C30: 0 | D30: 0 | E30: 0 | F30: 0 | G30: 0 | H30: 0 | I30: 0 | J30: 0 | K30: 0 | L30: 0
A31: arahy.Tifrunner.gnm1.ann1.00EJBM | B31: 0 | C31: 0 | D31: 0 | E31: 0 | F31: 0 | G31: 0 | H31: 0 | I31: 0 | J31: 0 | K31: 0 | L31: 0
A32: arahy.Tifrunner.gnm1.ann1.00EXCN | B32: 0 | C32: 0 | D32: 0 | E32: 0 | F32: 0 | G32: 0 | H32: 0 | I32: 0 | J32: 0 | K32: 0 | L32: 0
A33: arahy.Tifrunner.gnm1.ann1.00G2U6 | B33: 5.93787 | C33: 8.15949 | D33: 11.6021 | E33: 4.82683 | F33: 4.40474 | G33: 3.57654 | H33: 4.19449 | I33: 4.18979 | J33: 4.54175 | K33: 9.51875 | L33: 3.61913
A34: arahy.Tifrunner.gnm1.ann1.00HHTV | B34: 12.3548 | C34: 6.55865 | D34: 0 | E34: 4.96436 | F34: 6.85271 | G34: 6.18676 | H34: 11.9566 | I34: 6.68783 | J34: 11.115 | K34: 0 | L34: 6.82735
A35: arahy.Tifrunner.gnm1.ann1.00HJQK | B35: 0.137318 | C35: 0.165918 | D35: 0.952811 | E35: 0.180716 | F35: 0.240175 | G35: 0.0345016 | H35: 0.130471 | I35: 0.129221 | J35: 0.404429 | K35: 0.259129 | L35: 0.103915
A36: arahy.Tifrunner.gnm1.ann1.00HL0A | B36: 0 | C36: 0 | D36: 0 | E36: 0 | F36: 0 | G36: 0 | H36: 0 | I36: 0 | J36: 0 | K36: 0 | L36: 0
A37: arahy.Tifrunner.gnm1.ann1.00HR05 | B37: 1.71542 | C37: 0.900243 | D37: 0.360128 | E37: 1.37819 | F37: 0.88556 | G37: 1.03705 | H37: 1.01821 | I37: 1.24093 | J37: 1.00283 | K37: 0.974264 | L37: 1.59186
A38: arahy.Tifrunner.gnm1.ann1.00I77L | B38: 0.651386 | C38: 1.027 | D38: 0 | E38: 1.76883 | F38: 2.19187 | G38: 4.99112 | H38: 3.39927 | I38: 3.79691 | J38: 2.95117 | K38: 1.36542 | L38: 1.67752
A39: arahy.Tifrunner.gnm1.ann1.00I7KW | B39: 13.7488 | C39: 9.44884 | D39: 0 | E39: 16.9709 | F39: 23.3227 | G39: 23.9235 | H39: 20.4369 | I39: 20.7555 | J39: 30.1885 | K39: 10.2069 | L39: 11.582
A40: arahy.Tifrunner.gnm1.ann1.00IH7J | B40: 0 | C40: 0 | D40: 0 | E40: 0 | F40: 0 | G40: 0 | H40: 0 | I40: 0 | J40: 0 | K40: 0 | L40: 0
A41: arahy.Tifrunner.gnm1.ann1.00IIWW | B41: 0 | C41: 0.1381 | D41: 0 | E41: 0.0395286 | F41: 0 | G41: 0 | H41: 0.0433508 | I41: 0 | J41: 0.0425358 | K41: 0 | L41: 0.204452
A42: arahy.Tifrunner.gnm1.ann1.00JV9G | B42: 4.18113 | C42: 4.24869 | D42: 1.1868 | E42: 5.9564 | F42: 7.24095 | G42: 12.3531 | H42: 11.85 | I42: 4.51795 | J42: 7.16537 | K42: 4.8342 | L42: 16.3042
A43: arahy.Tifrunner.gnm1.ann1.00JXB8 | B43: 9.99761 | C43: 5.92265 | D43: 10.8458 | E43: 8.14828 | F43: 8.98275 | G43: 8.51409 | H43: 8.68333 | I43: 7.96449 | J43: 8.91708 | K43: 8.72271 | L43: 10.5387
A44: arahy.Tifrunner.gnm1.ann1.00K3B7 | B44: 0.398905 | C44: 0.459159 | D44: 0 | E44: 0.516954 | F44: 0.505627 | G44: 0.300087 | H44: 0.37693 | I44: 0.776982 | J44: 0.753808 | K44: 0.351959 | L44: 0.255814
A45: arahy.Tifrunner.gnm1.ann1.00KTF5 | B45: 0 | C45: 0 | D45: 0.107587 | E45: 0 | F45: 0 | G45: 0 | H45: 0 | I45: 0 | J45: 0 | K45: 0 | L45: 0
A46: arahy.Tifrunner.gnm1.ann1.00L7NP | B46: 5.93E-05 | C46: 3.4027 | D46: 0 | E46: 3.53711 | F46: 4.46405 | G46: 2.75529 | H46: 2.03206 | I46: 4.21053 | J46: 4.8547 | K46: 0 | L46: 3.24635
A47: arahy.Tifrunner.gnm1.ann1.00M5T5 | B47: 0.326672 | C47: 1.59301 | D47: 0 | E47: 1.24466 | F47: 1.17584 | G47: 1.19481 | H47: 1.08783 | I47: 1.45146 | J47: 1.41074 | K47: 0.0689035 | L47: 1.70714
A48: arahy.Tifrunner.gnm1.ann1.00M671 | B48: 0 | C48: 0 | D48: 0 | E48: 0 | F48: 0 | G48: 0 | H48: 0 | I48: 0 | J48: 0 | K48: 0 | L48: 0
A49: arahy.Tifrunner.gnm1.ann1.00MENJ | B49: 0 | C49: 0 | D49: 0 | E49: 0 | F49: 0 | G49: 0 | H49: 0 | I49: 0 | J49: 0 | K49: 0 | L49: 0
A50: arahy.Tifrunner.gnm1.ann1.00N95T | B50: 1.40331 | C50: 1.02814 | D50: 1.96962 | E50: 1.3199 | F50: 1.71864 | G50: 1.17868 | H50: 1.5603 | I50: 1.19352 | J50: 1.73171 | K50: 1.38676 | L50: 0.971548
A51: arahy.Tifrunner.gnm1.ann1.00NC5I | B51: 0 | C51: 0 | D51: 0 | E51: 0 | F51: 0 | G51: 0 | H51: 0 | I51: 0 | J51: 0 | K51: 0 | L51: 0
A52: arahy.Tifrunner.gnm1.ann1.00PPME | B52: 14.5734 | C52: 12.3337 | D52: 14.8239 | E52: 10.1946 | F52: 9.94668 | G52: 9.0418 | H52: 8.95473 | I52: 9.77163 | J52: 8.46737 | K52: 20.1137 | L52: 8.11779
A53: arahy.Tifrunner.gnm1.ann1.00PRVK | B53: 0 | C53: 0 | D53: 0 | E53: 0 | F53: 0 | G53: 0.0573357 | H53: 0 | I53: 0 | J53: 0 | K53: 0 | L53: 0
A54: arahy.Tifrunner.gnm1.ann1.00Q11I | B54: 2.02397 | C54: 1.32435 | D54: 3.66957 | E54: 1.16386 | F54: 1.27046 | G54: 1.5929 | H54: 1.63883 | I54: 1.48767 | J54: 1.3315 | K54: 3.58718 | L54: 1.35171
A55: arahy.Tifrunner.gnm1.ann1.00QF5S | B55: 0.273994 | C55: 0 | D55: 0 | E55: 0.0481227 | F55: 0 | G55: 0 | H55: 0.0519791 | I55: 0.0114395 | J55: 0.0169521 | K55: 0 | L55: 0
A56: arahy.Tifrunner.gnm1.ann1.00QPSW | B56: 0.76512 | C56: 0.449516 | D56: 0 | E56: 0.335827 | F56: 0.29943 | G56: 0.455314 | H56: 0.22934 | I56: 0.403794 | J56: 0.243133 | K56: 0 | L56: 0.655594
A57: arahy.Tifrunner.gnm1.ann1.00QVML | B57: 0 | C57: 0.000172561 | D57: 0 | E57: 0.00082458 | F57: 0.650031 | G57: 0 | H57: 0.00039721 | I57: 0 | J57: 0.00056908 | K57: 0 | L57: 0
A58: arahy.Tifrunner.gnm1.ann1.00QZ3I | B58: 17.2576 | C58: 9.95005 | D58: 29.0031 | E58: 9.2688 | F58: 8.14629 | G58: 10.0407 | H58: 10.8007 | I58: 9.25238 | J58: 11.2039 | K58: 21.4839 | L58: 10.8744
A59: arahy.Tifrunner.gnm1.ann1.00R4IN | B59: 0 | C59: 0 | D59: 0 | E59: 0 | F59: 0 | G59: 7.03325 | H59: 0 | I59: 0 | J59: 0 | K59: 0 | L59: 7.90921
A60: arahy.Tifrunner.gnm1.ann1.00REGV | B60: 0 | C60: 0 | D60: 0 | E60: 0 | F60: 0 | G60: 0 | H60: 0 | I60: 0 | J60: 0 | K60: 0 | L60: 0
A61: arahy.Tifrunner.gnm1.ann1.00RJ5Y | B61: 0.120194 | C61: 0.0290607 | D61: 0 | E61: 0.0210858 | F61: 0.0420396 | G61: 0.163073 | H61: 0.0228496 | I61: 0.0452621 | J61: 0 | K61: 0 | L61: 0.0181866
A62: arahy.Tifrunner.gnm1.ann1.00RLSV | B62: 0 | C62: 0 | D62: 0 | E62: 0 | F62: 0 | G62: 0 | H62: 0 | I62: 0 | J62: 0 | K62: 0 | L62: 0
A63: arahy.Tifrunner.gnm1.ann1.00RPEQ | B63: 0 | C63: 0 | D63: 0 | E63: 0 | F63: 0 | G63: 0 | H63: 0 | I63: 0 | J63: 0 | K63: 0 | L63: 0
A64: arahy.Tifrunner.gnm1.ann1.00SNP9 | B64: 0 | C64: 0 | D64: 0 | E64: 0 | F64: 0 | G64: 0 | H64: 0 | I64: 0 | J64: 0 | K64: 0 | L64: 0
A65: arahy.Tifrunner.gnm1.ann1.00SZA6 | B65: 2.46462 | C65: 1.99993 | D65: 0 | E65: 1.1411 | F65: 0.920985 | G65: 0.871764 | H65: 0.820587 | I65: 0.797083 | J65: 1.70596 | K65: 0.420781 | L65: 1.02139
A66: arahy.Tifrunner.gnm1.ann1.00T38C | B66: 0 | C66: 0 | D66: 0 | E66: 0 | F66: 0 | G66: 0 | H66: 0 | I66: 0 | J66: 0 | K66: 0 | L66: 0
A67: arahy.Tifrunner.gnm1.ann1.00UVWE | B67: 41.9152 | C67: 29.1948 | D67: 9.15622 | E67: 48.7027 | F67: 87.7834 | G67: 43.0893 | H67: 69.1726 | I67: 42.4023 | J67: 71.1039 | K67: 14.7441 | L67: 28.3077
A68: arahy.Tifrunner.gnm1.ann1.00V3DL | B68: 3.98254 | C68: 2.7978 | D68: 7.22454 | E68: 1.29511 | F68: 0.889803 | G68: 2.0184 | H68: 1.65493 | I68: 1.26236 | J68: 0.943087 | K68: 4.5336 | L68: 1.69512
A69: arahy.Tifrunner.gnm1.ann1.00V694 | B69: 0 | C69: 0 | D69: 0 | E69: 0 | F69: 0 | G69: 0 | H69: 0 | I69: 0 | J69: 0 | K69: 0 | L69: 0
A70: arahy.Tifrunner.gnm1.ann1.00VL53 | B70: 8.13587 | C70: 5.767 | D70: 9.34233 | E70: 6.00235 | F70: 6.40554 | G70: 3.25563 | H70: 7.70043 | I70: 6.36802 | J70: 6.0235 | K70: 4.43098 | L70: 3.87931
A71: arahy.Tifrunner.gnm1.ann1.00VVAL | B71: 13.1619 | C71: 2.02601 | D71: 29.4817 | E71: 2.07711 | F71: 1.46041 | G71: 17.4032 | H71: 5.97517 | I71: 12.0481 | J71: 2.26433 | K71: 10.3554 | L71: 2.95059
A72: arahy.Tifrunner.gnm1.ann1.00W0BQ | B72: 0.0369864 | C72: 0.0741296 | D72: 0.133529 | E72: 0.249314 | F72: 0.237472 | G72: 0.148703 | H72: 0.0700162 | I72: 0.0693356 | J72: 0.0570513 | K72: 0.0561629 | L72: 0.402139
A73: arahy.Tifrunner.gnm1.ann1.00W2W5 | B73: 0 | C73: 0 | D73: 0 | E73: 0 | F73: 0 | G73: 0 | H73: 0 | I73: 0 | J73: 0 | K73: 0 | L73: 0
A74: arahy.Tifrunner.gnm1.ann1.00W5AZ | B74: 0 | C74: 0 | D74: 0 | E74: 0 | F74: 0 | G74: 0 | H74: 0 | I74: 0 | J74: 0 | K74: 0 | L74: 0
A75: arahy.Tifrunner.gnm1.ann1.00WLDY | B75: 0 | C75: 0 | D75: 0 | E75: 0 | F75: 0 | G75: 0 | H75: 0 | I75: 0 | J75: 0 | K75: 0 | L75: 0
A76: arahy.Tifrunner.gnm1.ann1.00WUVK | B76: 5.36495 | C76: 6.58921 | D76: 11.1526 | E76: 4.45588 | F76: 4.78963 | G76: 5.08592 | H76: 6.64125 | I76: 6.65124 | J76: 5.77203 | K76: 4.06699 | L76: 6.00678
A77: arahy.Tifrunner.gnm1.ann1.00X5DN | B77: 0.0220342 | C77: 0.0220315 | D77: 0 | E77: 0.0904971 | F77: 0.289528 | G77: 0.011074 | H77: 0.0416362 | I77: 0 | J77: 0.18989 | K77: 0.0335508 | L77: 0.0223106
A78: arahy.Tifrunner.gnm1.ann1.00XFQD | B78: 1.11389 | C78: 0.678574 | D78: 0 | E78: 0.829444 | F78: 0.900166 | G78: 0.404181 | H78: 0.63137 | I78: 1.09458 | J78: 0.464426 | K78: 3.69949 | L78: 0.528544
A79: arahy.Tifrunner.gnm1.ann1.00XS3D | B79: 0 | C79: 3.38601 | D79: 0 | E79: 3.14517 | F79: 2.6851 | G79: 1.79402 | H79: 2.05506 | I79: 1.73396 | J79: 1.73783 | K79: 0 | L79: 3.21614
A80: arahy.Tifrunner.gnm1.ann1.00XSPS | B80: 0 | C80: 0 | D80: 0 | E80: 0 | F80: 0 | G80: 0 | H80: 0 | I80: 0 | J80: 0 | K80: 0 | L80: 0
A81: arahy.Tifrunner.gnm1.ann1.00YXRD | B81: 2.82863 | C81: 3.54474 | D81: 2.05394 | E81: 3.38415 | F81: 3.14153 | G81: 2.7202 | H81: 2.3935 | I81: 3.12202 | J81: 2.49709 | K81: 2.80746 | L81: 3.13174
A82: arahy.Tifrunner.gnm1.ann1.00Z2SH | B82: 0 | C82: 0 | D82: 3.22288 | E82: 0 | F82: 0 | G82: 0 | H82: 0 | I82: 0 | J82: 0 | K82: 0 | L82: 0
A83: arahy.Tifrunner.gnm1.ann1.00Z79N | B83: 0 | C83: 0 | D83: 0 | E83: 0 | F83: 0 | G83: 0 | H83: 0 | I83: 0 | J83: 0 | K83: 0 | L83: 0
A84: arahy.Tifrunner.gnm1.ann1.00ZDTM | B84: 12.6756 | C84: 14.9529 | D84: 26.1051 | E84: 7.77397 | F84: 5.53216 | G84: 9.88742 | H84: 6.23255 | I84: 8.46397 | J84: 6.642 | K84: 31.7388 | L84: 10.2602
A85: arahy.Tifrunner.gnm1.ann1.00ZY8E | B85: 0 | C85: 0 | D85: 0 | E85: 0 | F85: 0 | G85: 0 | H85: 0 | I85: 0 | J85: 0 | K85: 0 | L85: 0
A86: arahy.Tifrunner.gnm1.ann1.010Z0V | B86: 0 | C86: 0 | D86: 0 | E86: 0 | F86: 0 | G86: 0 | H86: 0 | I86: 0 | J86: 0 | K86: 0 | L86: 0.0426846
A87: arahy.Tifrunner.gnm1.ann1.010ZR1 | B87: 0.828744 | C87: 5.30276 | D87: 0 | E87: 0.509687 | F87: 0.307456 | G87: 0.624127 | H87: 0.116463 | I87: 0 | J87: 1.15276 | K87: 1.46493 | L87: 0.701706
A88: arahy.Tifrunner.gnm1.ann1.01135Y | B88: 0 | C88: 0 | D88: 0 | E88: 0 | F88: 0 | G88: 0 | H88: 0 | I88: 0 | J88: 0 | K88: 0 | L88: 0
A89: arahy.Tifrunner.gnm1.ann1.011VCX | B89: 2.54451 | C89: 0.534442 | D89: 0 | E89: 2.12014 | F89: 0.708637 | G89: 1.65631 | H89: 1.57922 | I89: 1.07115 | J89: 0.917539 | K89: 0 | L89: 0.143576
A90: arahy.Tifrunner.gnm1.ann1.011XRQ | B90: 4.98488 | C90: 5.12465 | D90: 7.47679 | E90: 6.8289 | F90: 5.65138 | G90: 1.83639 | H90: 0.790787 | I90: 3.80741 | J90: 2.1268 | K90: 2.28517 | L90: 1.66637
A91: arahy.Tifrunner.gnm1.ann1.012SKZ | B91: 243.543 | C91: 86.1862 | D91: 157.565 | E91: 124.572 | F91: 173.112 | G91: 136.049 | H91: 149.224 | I91: 126.754 | J91: 133.38 | K91: 186.927 | L91: 121.979
A92: arahy.Tifrunner.gnm1.ann1.013JYW | B92: 2.69527 | C92: 1.75236 | D92: 0.0257452 | E92: 1.74551 | F92: 2.45837 | G92: 2.19015 | H92: 2.48482 | I92: 2.32317 | J92: 2.46686 | K92: 2.41823 | L92: 2.12824
A93: arahy.Tifrunner.gnm1.ann1.0142CX | B93: 0 | C93: 0 | D93: 0 | E93: 0 | F93: 0 | G93: 0 | H93: 0 | I93: 0 | J93: 0 | K93: 0 | L93: 0
A94: arahy.Tifrunner.gnm1.ann1.014EBR | B94: 0.39771 | C94: 0.973987 | D94: 0.746736 | E94: 0.816255 | F94: 1.08058 | G94: 0.853317 | H94: 0.50153 | I94: 0.72586 | J94: 1.188 | K94: 0.517419 | L94: 0.70427
A95: arahy.Tifrunner.gnm1.ann1.015FZL | B95: 0.104176 | C95: 0.0895858 | D95: 0 | E95: 0.0653904 | F95: 0.130262 | G95: 0.0336556 | H95: 0.0422978 | I95: 0.0930846 | J95: 0.124109 | K95: 0.507746 | L95: 0.203085
A96: arahy.Tifrunner.gnm1.ann1.015R0E | B96: 0 | C96: 0 | D96: 0 | E96: 0 | F96: 0 | G96: 0 | H96: 0 | I96: 0 | J96: 0 | K96: 0 | L96: 0
A97: arahy.Tifrunner.gnm1.ann1.015UF7 | B97: 0 | C97: 0 | D97: 0 | E97: 0 | F97: 0 | G97: 0 | H97: 0 | I97: 0 | J97: 0 | K97: 0 | L97: 0
A98: arahy.Tifrunner.gnm1.ann1.015YF3 | B98: 0 | C98: 0 | D98: 0 | E98: 0 | F98: 0 | G98: 0 | H98: 0 | I98: 0 | J98: 0 | K98: 0.013959 | L98: 0
A99: arahy.Tifrunner.gnm1.ann1.016HCI | B99: 39.8308 | C99: 35.0345 | D99: 0 | E99: 21.4454 | F99: 24.9414 | G99: 16.6738 | H99: 41.6304 | I99: 35.63 | J99: 23.0116 | K99: 21.2998 | L99: 16.9644
A100: arahy.Tifrunner.gnm1.ann1.016YCC | B100: 0 | C100: 0.0378867 | D100: 0 | E100: 7.30E-05 | F100: 0.000317836 | G100: 0.339482 | H100: 0.732339 | I100: 0.192901 | J100: 0.385925 | K100: 0 | L100: 0.000502518
A101: arahy.Tifrunner.gnm1.ann1.0188KY | B101: 0 | C101: 0 | D101: 0 | E101: 0.0201463 | F101: 0 | G101: 0.0172704 | H101: 0 | I101: 0 | J101: 0.0211943 | K101: 0 | L101: 0
A102: arahy.Tifrunner.gnm1.ann1.018Q39 | B102: 0.2596 | C102: 0.373699 | D102: 0 | E102: 0.766408 | F102: 1.06868 | G102: 0.470001 | H102: 0.492079 | I102: 0.194949 | J102: 1.2222 | K102: 0.217684 | L102: 0.549088
A103: arahy.Tifrunner.gnm1.ann1.019HRU | B103: 0.302314 | C103: 0.486439 | D103: 1.73587 | E103: 0.79615 | F103: 0.93442 | G103: 0.425372 | H103: 0.554779 | I103: 0.606283 | J103: 0.299533 | K103: 0.662762 | L103: 0.976711
A104: arahy.Tifrunner.gnm1.ann1.019LBF | B104: 0.0302084 | C104: 0.0272792 | D104: 0 | E104: 0 | F104: 0.0661005 | G104: 0 | H104: 0.0143106 | I104: 0 | J104: 0.0279939 | K104: 0.077288 | L104: 0.0114502
A105: arahy.Tifrunner.gnm1.ann1.01A8MA | B105: 1.24955 | C105: 0.529039 | D105: 0 | E105: 0.255853 | F105: 1.64596 | G105: 0 | H105: 1.70757 | I105: 0.526763 | J105: 0 | K105: 0 | L105: 0.466452
A106: arahy.Tifrunner.gnm1.ann1.01A9SY | B106: 12.1292 | C106: 4.00247 | D106: 10.5378 | E106: 5.80089 | F106: 4.39843 | G106: 4.90803 | H106: 4.42364 | I106: 5.0281 | J106: 5.33979 | K106: 10.8523 | L106: 4.35136
A107: arahy.Tifrunner.gnm1.ann1.01ACP3 | B107: 0 | C107: 0.333766 | D107: 0 | E107: 0.137672 | F107: 0.129348 | G107: 0.0958986 | H107: 0.0804851 | I107: 0.132426 | J107: 0.281656 | K107: 0 | L107: 0.325448
A108: arahy.Tifrunner.gnm1.ann1.01AR4S | B108: 52.2575 | C108: 30.6159 | D108: 111.449 | E108: 25.9484 | F108: 23.3061 | G108: 22.8087 | H108: 36.3431 | I108: 26.2544 | J108: 28.0609 | K108: 69.9887 | L108: 28.1008
A109: arahy.Tifrunner.gnm1.ann1.01AYHN | B109: 1.68159 | C109: 1.4415 | D109: 5.22576 | E109: 0.835706 | F109: 1.03438 | G109: 1.32494 | H109: 1.46061 | I109: 1.13341 | J109: 0.859243 | K109: 3.79756 | L109: 1.26815
A110: arahy.Tifrunner.gnm1.ann1.01B6ZB | B110: 0.1253 | C110: 4.57E-06 | D110: 0 | E110: 0.00042031 | F110: 0.184427 | G110: 0 | H110: 0.343719 | I110: 1.62E-05 | J110: 0 | K110: 6.70E-06 | L110: 0.000289576
A111: arahy.Tifrunner.gnm1.ann1.01BTST | B111: 0 | C111: 0 | D111: 0 | E111: 0 | F111: 0 | G111: 0 | H111: 0 | I111: 0 | J111: 0 | K111: 0 | L111: 0
A112: arahy.Tifrunner.gnm1.ann1.01BVTU | B112: 0 | C112: 0.503477 | D112: 0 | E112: 0 | F112: 0.331132 | G112: 0.00191634 | H112: 0 | I112: 0.00235013 | J112: 0.0532346 | K112: 0 | L112: 0.48949
A113: arahy.Tifrunner.gnm1.ann1.01BY0R | B113: 22.5912 | C113: 8.15373 | D113: 9.19236 | E113: 4.88877 | F113: 7.60127 | G113: 5.13388 | H113: 4.58922 | I113: 17.5303 | J113: 4.44643 | K113: 16.9663 | L113: 14.6842
A114: arahy.Tifrunner.gnm1.ann1.01D1MQ | B114: 4.32461 | C114: 3.6573 | D114: 4.91485 | E114: 7.19857 | F114: 8.16071 | G114: 8.40098 | H114: 5.95669 | I114: 7.24102 | J114: 8.14245 | K114: 3.6042 | L114: 7.02456
A115: arahy.Tifrunner.gnm1.ann1.01D2LU | B115: 0 | C115: 2.22335 | D115: 0 | E115: 1.57986 | F115: 2.49735 | G115: 0.103184 | H115: 0.217138 | I115: 1.14781 | J115: 0.984877 | K115: 0 | L115: 0.82101
A116: arahy.Tifrunner.gnm1.ann1.01D3A3 | B116: 0.278736 | C116: 0 | D116: 0 | E116: 2.87E-05 | F116: 0.160296 | G116: 1.58E-05 | H116: 0 | I116: 0.131341 | J116: 0 | K116: 0.932024 | L116: 0.216757
A117: arahy.Tifrunner.gnm1.ann1.01DGNM | B117: 0.690514 | C117: 1.82456 | D117: 0 | E117: 1.94778 | F117: 1.33217 | G117: 0.744671 | H117: 2.24158 | I117: 1.0483 | J117: 2.3325 | K117: 0 | L117: 2.03993
A118: arahy.Tifrunner.gnm1.ann1.01DT97 | B118: 0.102711 | C118: 1.47722 | D118: 0 | E118: 1.07524 | F118: 0.492505 | G118: 7.93332 | H118: 1.28189 | I118: 1.5632 | J118: 1.59747 | K118: 0.601132 | L118: 0.965379
A119: arahy.Tifrunner.gnm1.ann1.01ENSP | B119: 0 | C119: 0 | D119: 0 | E119: 0 | F119: 0 | G119: 0 | H119: 0 | I119: 0 | J119: 0 | K119: 0 | L119: 0.329271
A120: arahy.Tifrunner.gnm1.ann1.01FKSV | B120: 0 | C120: 0 | D120: 0.84771 | E120: 0 | F120: 0.118466 | G120: 0 | H120: 0 | I120: 0 | J120: 0 | K120: 0 | L120: 0
A121: arahy.Tifrunner.gnm1.ann1.01FT8Z | B121: 1.52012 | C121: 1.71501 | D121: 0 | E121: 1.98446 | F121: 1.37872 | G121: 1.09764 | H121: 1.22151 | I121: 1.08943 | J121: 1.20089 | K121: 1.85908 | L121: 2.56487
A122: arahy.Tifrunner.gnm1.ann1.01FW6X | B122: 0 | C122: 0 | D122: 0 | E122: 0 | F122: 0 | G122: 0 | H122: 0 | I122: 0 | J122: 0 | K122: 0 | L122: 0
A123: arahy.Tifrunner.gnm1.ann1.01G98H | B123: 0 | C123: 0 | D123: 0 | E123: 0 | F123: 0 | G123: 0 | H123: 0 | I123: 0 | J123: 0 | K123: 0 | L123: 0
A124: arahy.Tifrunner.gnm1.ann1.01GDC8 | B124: 0.0042426 | C124: 2.31862 | D124: 0 | E124: 2.10801 | F124: 5.25968 | G124: 12.6524 | H124: 14.4372 | I124: 10.8039 | J124: 0.0108962 | K124: 0.0259806 | L124: 9.4384
A125: arahy.Tifrunner.gnm1.ann1.01HD59 | B125: 0.329665 | C125: 0.584851 | D125: 0 | E125: 0.510771 | F125: 0.45806 | G125: 0.540845 | H125: 0.404838 | I125: 0.400941 | J125: 0.342122 | K125: 0 | L125: 0.20561
A126: arahy.Tifrunner.gnm1.ann1.01HJNS | B126: 0 | C126: 7.71622 | D126: 0 | E126: 5.27629 | F126: 12.2229 | G126: 11.625 | H126: 9.6287 | I126: 12.5272 | J126: 14.3521 | K126: 0 | L126: 8.85565
A127: arahy.Tifrunner.gnm1.ann1.01HJP6 | B127: 0.523507 | C127: 0.693312 | D127: 1.41463 | E127: 0.210301 | F127: 0.353478 | G127: 0.394628 | H127: 0.340098 | I127: 0.271314 | J127: 0.568255 | K127: 0.688884 | L127: 0.14741
A128: arahy.Tifrunner.gnm1.ann1.01HRZR | B128: 0 | C128: 0 | D128: 0 | E128: 0 | F128: 0 | G128: 0 | H128: 0 | I128: 0 | J128: 0 | K128: 0 | L128: 0
A129: arahy.Tifrunner.gnm1.ann1.01HUHH | B129: 6.34591 | C129: 6.03238 | D129: 12.0883 | E129: 5.60864 | F129: 3.93925 | G129: 4.38159 | H129: 4.28254 | I129: 4.15036 | J129: 4.50823 | K129: 12.7566 | L129: 3.8663
A130: arahy.Tifrunner.gnm1.ann1.01IKZ7 | B130: 0 | C130: 0.126198 | D130: 0 | E130: 0.330476 | F130: 0.167137 | G130: 0 | H130: 0 | I130: 0.12952 | J130: 0.196414 | K130: 0 | L130: 0
A131: arahy.Tifrunner.gnm1.ann1.01IP25 | B131: 0 | C131: 0 | D131: 0 | E131: 0 | F131: 0 | G131: 0 | H131: 0 | I131: 0 | J131: 0 | K131: 0 | L131: 0
A132: arahy.Tifrunner.gnm1.ann1.01JKBA | B132: 0 | C132: 0.996525 | D132: 0 | E132: 0 | F132: 0.313587 | G132: 0.554918 | H132: 0.382454 | I132: 0 | J132: 0.793421 | K132: 0 | L132: 0
A133: arahy.Tifrunner.gnm1.ann1.01K7X8 | B133: 0 | C133: 0 | D133: 0 | E133: 0 | F133: 0 | G133: 0 | H133: 0 | I133: 0 | J133: 0 | K133: 0 | L133: 0
A134: arahy.Tifrunner.gnm1.ann1.01LB4B | B134: 0 | C134: 1.28818 | D134: 0 | E134: 1.10084 | F134: 1.42117 | G134: 1.03037 | H134: 0.656664 | I134: 0.40039 | J134: 0.595224 | K134: 0 | L134: 0.276733
A135: arahy.Tifrunner.gnm1.ann1.01LY89 | B135: 5.84287 | C135: 1.92746 | D135: 10.9315 | E135: 1.33053 | F135: 0.914532 | G135: 1.47637 | H135: 1.28867 | I135: 1.25524 | J135: 1.23133 | K135: 5.53082 | L135: 1.1473
A136: arahy.Tifrunner.gnm1.ann1.01M4JQ | B136: 0 | C136: 0 | D136: 0 | E136: 0.0310243 | F136: 0.545648 | G136: 0.0561424 | H136: 0.0852811 | I136: 0 | J136: 0 | K136: 0 | L136: 0.000821972
A137: arahy.Tifrunner.gnm1.ann1.01NQBU | B137: 0 | C137: 0.492765 | D137: 0 | E137: 1.91892 | F137: 2.79431 | G137: 3.70612 | H137: 2.04082 | I137: 2.71208 | J137: 0.34399 | K137: 0 | L137: 2.67269
A138: arahy.Tifrunner.gnm1.ann1.01P7ER | B138: 6.11843 | C138: 6.32907 | D138: 5.50052 | E138: 6.83294 | F138: 5.54565 | G138: 6.87585 | H138: 4.54391 | I138: 6.25163 | J138: 5.44059 | K138: 4.51078 | L138: 4.14243
A139: arahy.Tifrunner.gnm1.ann1.01QGAU | B139: 0.160385 | C139: 0.0970636 | D139: 0 | E139: 0.164042 | F139: 0.23367 | G139: 0.120887 | H139: 0.0763002 | I139: 0.184734 | J139: 0.124531 | K139: 0.166111 | L139: 0.101055
A140: arahy.Tifrunner.gnm1.ann1.01R8FJ | B140: 0 | C140: 0 | D140: 0 | E140: 0 | F140: 0 | G140: 0 | H140: 0 | I140: 0 | J140: 0 | K140: 0 | L140: 0
A141: arahy.Tifrunner.gnm1.ann1.01RJGJ | B141: 0.12011 | C141: 0.917941 | D141: 0 | E141: 0.966532 | F141: 1.06822 | G141: 0.573396 | H141: 0.66501 | I141: 0.740156 | J141: 0.94826 | K141: 0.068104 | L141: 0.409282
A142: arahy.Tifrunner.gnm1.ann1.01RPY8 | B142: 3.50566 | C142: 1.00092 | D142: 13.0618 | E142: 1.50344 | F142: 2.93926 | G142: 1.004 | H142: 2.34193 | I142: 0.397692 | J142: 2.13145 | K142: 1.55743 | L142: 1.24345
A143: arahy.Tifrunner.gnm1.ann1.01RQ4M | B143: 0 | C143: 0 | D143: 0 | E143: 0 | F143: 5.87E-05 | G143: 0 | H143: 0 | I143: 0 | J143: 0 | K143: 0 | L143: 0
A144: arahy.Tifrunner.gnm1.ann1.01S097 | B144: 1.76471 | C144: 2.89735 | D144: 8.4181 | E144: 1.98509 | F144: 1.68183 | G144: 1.29607 | H144: 2.29989 | I144: 1.85918 | J144: 1.74629 | K144: 4.4451 | L144: 1.33552
A145: arahy.Tifrunner.gnm1.ann1.01T4AB | B145: 0 | C145: 0 | D145: 0 | E145: 0 | F145: 0 | G145: 0.0470069 | H145: 0 | I145: 0 | J145: 0 | K145: 0 | L145: 0
A146: arahy.Tifrunner.gnm1.ann1.01T93A | B146: 0 | C146: 0.393271 | D146: 0 | E146: 1.23752 | F146: 4.03032 | G146: 3.33066 | H146: 4.54721 | I146: 1.20622 | J146: 3.10203 | K146: 0 | L146: 6.55735
A147: arahy.Tifrunner.gnm1.ann1.01TKSZ | B147: 0 | C147: 0.0284675 | D147: 0 | E147: 3.59963 | F147: 4.50963 | G147: 0.0475127 | H147: 0.0746657 | I147: 0.0492955 | J147: 0.146068 | K147: 0.170159 | L147: 0.0716619
A148: arahy.Tifrunner.gnm1.ann1.01TYUM | B148: 9.01988 | C148: 7.02279 | D148: 12.4095 | E148: 8.45455 | F148: 9.03954 | G148: 6.23272 | H148: 7.54876 | I148: 5.70783 | J148: 8.40016 | K148: 7.57307 | L148: 4.11413
A149: arahy.Tifrunner.gnm1.ann1.01U1VE | B149: 26.3949 | C149: 36.4237 | D149: 9.88101 | E149: 13.1806 | F149: 13.2146 | G149: 12.2981 | H149: 19.7525 | I149: 8.64393 | J149: 22.6443 | K149: 29.5217 | L149: 22.9201
A150: arahy.Tifrunner.gnm1.ann1.01UHHT | B150: 0 | C150: 0 | D150: 0 | E150: 0 | F150: 0 | G150: 0 | H150: 0 | I150: 0 | J150: 0 | K150: 0 | L150: 0
A151: arahy.Tifrunner.gnm1.ann1.01UMM0 | B151: 0.366845 | C151: 0.335924 | D151: 0 | E151: 0.120142 | F151: 0.160008 | G151: 0.241895 | H151: 0.0878696 | I151: 0.348218 | J151: 0.215558 | K151: 0 | L151: 0.207133
A152: arahy.Tifrunner.gnm1.ann1.01UYDA | B152: 0 | C152: 0 | D152: 0 | E152: 0 | F152: 0 | G152: 0 | H152: 0 | I152: 0 | J152: 0 | K152: 0 | L152: 0
A153: arahy.Tifrunner.gnm1.ann1.01W0YK | B153: 0 | C153: 0 | D153: 0 | E153: 0 | F153: 0 | G153: 0 | H153: 0 | I153: 0 | J153: 0 | K153: 0 | L153: 0
A154: arahy.Tifrunner.gnm1.ann1.01WB0T | B154: 1.69004 | C154: 3.26617 | D154: 4.31473 | E154: 1.67026 | F154: 1.8283 | G154: 1.88858 | H154: 1.8615 | I154: 2.12885 | J154: 1.50724 | K154: 2.84553 | L154: 2.02965
A155: arahy.Tifrunner.gnm1.ann1.01WSAY | B155: 0.000116424 | C155: 1.16699 | D155: 1.09382 | E155: 0.149956 | F155: 0.343937 | G155: 1.12044 | H155: 6.59E-05 | I155: 0.59677 | J155: 0.000192863 | K155: 0.986185 | L155: 0.949611
A156: arahy.Tifrunner.gnm1.ann1.01X23P | B156: 6.04323 | C156: 3.95618 | D156: 9.24671 | E156: 4.46651 | F156: 4.01551 | G156: 4.58414 | H156: 6.15142 | I156: 5.77469 | J156: 3.46231 | K156: 6.88914 | L156: 6.46007
A157: arahy.Tifrunner.gnm1.ann1.01XFNB | B157: 0.123776 | C157: 0.583761 | D157: 0 | E157: 0.303955 | F157: 0.411247 | G157: 0.559774 | H157: 0.353051 | I157: 0.590566 | J157: 0.898718 | K157: 0.672003 | L157: 0.486864
A158: arahy.Tifrunner.gnm1.ann1.01YFCZ | B158: 0.893624 | C158: 1.33945 | D158: 0 | E158: 0.0733372 | F158: 0.13562 | G158: 1.10478 | H158: 1.21781 | I158: 1.36229 | J158: 1.28994 | K158: 0.780421 | L158: 1.04853
A159: arahy.Tifrunner.gnm1.ann1.01YPVW | B159: 58.6983 | C159: 57.7807 | D159: 35.7124 | E159: 32.3255 | F159: 29.7764 | G159: 29.4782 | H159: 44.1207 | I159: 43.1235 | J159: 37.9276 | K159: 72.0254 | L159: 20.6036
A160: arahy.Tifrunner.gnm1.ann1.01ZVMZ | B160: 8.14865 | C160: 1.14829 | D160: 7.22764 | E160: 2.81531 | F160: 4.15119 | G160: 6.06083 | H160: 1.69345 | I160: 4.01638 | J160: 0 | K160: 7.01894 | L160: 1.43895
A161: arahy.Tifrunner.gnm1.ann1.020U4T | B161: 0 | C161: 0 | D161: 0 | E161: 0 | F161: 0 | G161: 0 | H161: 0 | I161: 0 | J161: 0 | K161: 0 | L161: 0
A162: arahy.Tifrunner.gnm1.ann1.021TT5 | B162: 0 | C162: 6.75007 | D162: 0 | E162: 10.4597 | F162: 10.6556 | G162: 7.5549 | H162: 5.68047 | I162: 11.5286 | J162: 2.9091 | K162: 0 | L162: 2.79124
A163: arahy.Tifrunner.gnm1.ann1.0228NK | B163: 8.78601 | C163: 4.94411 | D163: 11.0017 | E163: 8.99552 | F163: 7.09142 | G163: 4.91784 | H163: 7.24219 | I163: 6.79558 | J163: 6.82187 | K163: 3.89566 | L163: 7.03658
A164: arahy.Tifrunner.gnm1.ann1.023UF6 | B164: 6.00075 | C164: 6.38934 | D164: 1.64245 | E164: 6.49413 | F164: 8.76637 | G164: 6.80148 | H164: 6.6924 | I164: 7.15096 | J164: 8.36903 | K164: 3.83892 | L164: 5.65193
A165: arahy.Tifrunner.gnm1.ann1.023W1F | B165: 0 | C165: 0 | D165: 0 | E165: 0 | F165: 0 | G165: 0 | H165: 0 | I165: 0 | J165: 0 | K165: 0 | L165: 0
A166: arahy.Tifrunner.gnm1.ann1.024UA3 | B166: 0.0541864 | C166: 2.18772 | D166: 0 | E166: 2.07294 | F166: 1.18677 | G166: 1.50819 | H166: 1.76819 | I166: 1.55934 | J166: 2.02564 | K166: 1.3951 | L166: 0.658341
A167: arahy.Tifrunner.gnm1.ann1.026BRM | B167: 0.277793 | C167: 0.698406 | D167: 0 | E167: 0.877817 | F167: 0.819905 | G167: 0.465366 | H167: 0.700642 | I167: 0.91866 | J167: 0.6564 | K167: 0.744886 | L167: 0.98382
A168: arahy.Tifrunner.gnm1.ann1.0270XD | B168: 0 | C168: 0.0646218 | D168: 0 | E168: 0.0890483 | F168: 0.0894073 | G168: 0.233011 | H168: 0.403585 | I168: 0.133381 | J168: 0 | K168: 0.447329 | L168: 0
A169: arahy.Tifrunner.gnm1.ann1.027AMB | B169: 1.27026 | C169: 0.732953 | D169: 3.03284 | E169: 0.494021 | F169: 0.476331 | G169: 0.752331 | H169: 1.9966 | I169: 0.670479 | J169: 1.17881 | K169: 0.720999 | L169: 0.329929
A170: arahy.Tifrunner.gnm1.ann1.02894U | B170: 0.230873 | C170: 1.29654 | D170: 0 | E170: 1.38656 | F170: 1.39604 | G170: 1.74215 | H170: 1.03702 | I170: 1.64036 | J170: 0.973178 | K170: 0 | L170: 1.28277
A171: arahy.Tifrunner.gnm1.ann1.028SBR | B171: 1.84227 | C171: 3.30743 | D171: 0.000148567 | E171: 3.18416 | F171: 3.33677 | G171: 3.46502 | H171: 2.80629 | I171: 4.03623 | J171: 1.47032 | K171: 1.21001 | L171: 3.99045
A172: arahy.Tifrunner.gnm1.ann1.028TPL | B172: 0 | C172: 0 | D172: 0 | E172: 0 | F172: 0 | G172: 0 | H172: 0 | I172: 0 | J172: 0 | K172: 0 | L172: 0
A173: arahy.Tifrunner.gnm1.ann1.029DEV | B173: 2.09054 | C173: 3.15618 | D173: 0 | E173: 2.85092 | F173: 4.48788 | G173: 4.25789 | H173: 3.84446 | I173: 4.28362 | J173: 4.10916 | K173: 1.40044 | L173: 2.70437
A174: arahy.Tifrunner.gnm1.ann1.029WE6 | B174: 15.4086 | C174: 24.5632 | D174: 11.0402 | E174: 23.1579 | F174: 23.637 | G174: 17.2981 | H174: 24.1646 | I174: 22.5717 | J174: 20.8423 | K174: 11.8945 | L174: 25.3494
A175: arahy.Tifrunner.gnm1.ann1.029YN0 | B175: 3.40765 | C175: 3.72695 | D175: 2.29927 | E175: 4.30139 | F175: 7.65796 | G175: 3.01761 | H175: 3.40279 | I175: 4.04802 | J175: 7.8232 | K175: 2.47156 | L175: 3.94886
A176: arahy.Tifrunner.gnm1.ann1.029YZL | B176: 0 | C176: 0 | D176: 0 | E176: 0 | F176: 0 | G176: 0 | H176: 0 | I176: 0 | J176: 0 | K176: 0 | L176: 0
A177: arahy.Tifrunner.gnm1.ann1.02AKAS | B177: 0 | C177: 0 | D177: 0 | E177: 0 | F177: 0 | G177: 0 | H177: 0 | I177: 0 | J177: 0 | K177: 0 | L177: 0
A178: arahy.Tifrunner.gnm1.ann1.02ARWT | B178: 0 | C178: 0 | D178: 0 | E178: 0 | F178: 0 | G178: 0 | H178: 0.134539 | I178: 0 | J178: 0 | K178: 0 | L178: 0.0521209
A179: arahy.Tifrunner.gnm1.ann1.02BAGQ | B179: 0.573286 | C179: 2.97326 | D179: 0 | E179: 1.80051 | F179: 3.04031 | G179: 2.4619 | H179: 1.56494 | I179: 2.8604 | J179: 1.78885 | K179: 0.404454 | L179: 1.81647
A180: arahy.Tifrunner.gnm1.ann1.02BAYT | B180: 0 | C180: 0 | D180: 0 | E180: 0 | F180: 0 | G180: 0 | H180: 0 | I180: 0 | J180: 0 | K180: 0 | L180: 0
A181: arahy.Tifrunner.gnm1.ann1.02BV2A | B181: 0.121953 | C181: 0.347964 | D181: 0.427224 | E181: 0.259236 | F181: 0.195796 | G181: 0.298787 | H181: 0.105728 | I181: 0.0761436 | J181: 0.206714 | K181: 0.10429 | L181: 0.185107
A182: arahy.Tifrunner.gnm1.ann1.02BXTR | B182: 0 | C182: 0 | D182: 0 | E182: 0 | F182: 0 | G182: 0 | H182: 0 | I182: 0 | J182: 0 | K182: 0 | L182: 0
A183: arahy.Tifrunner.gnm1.ann1.02CEIS | B183: 0 | C183: 0 | D183: 0 | E183: 0 | F183: 0 | G183: 0.0496925 | H183: 0 | I183: 0 | J183: 0 | K183: 0 | L183: 0
A184: arahy.Tifrunner.gnm1.ann1.02D1WC | B184: 0.867704 | C184: 1.03469 | D184: 0 | E184: 1.17136 | F184: 1.2648 | G184: 1.60995 | H184: 1.56395 | I184: 1.29777 | J184: 1.44806 | K184: 1.34819 | L184: 1.75127
A185: arahy.Tifrunner.gnm1.ann1.02DA49 | B185: 2.4643 | C185: 2.48238 | D185: 1.13032 | E185: 4.12629 | F185: 2.36029 | G185: 2.72218 | H185: 3.89194 | I185: 1.84229 | J185: 5.74608 | K185: 1.48888 | L185: 6.90796
A186: arahy.Tifrunner.gnm1.ann1.02DIMQ | B186: 0 | C186: 0 | D186: 0 | E186: 0 | F186: 0.118173 | G186: 0 | H186: 0 | I186: 0 | J186: 0.0645033 | K186: 0 | L186: 0
A187: arahy.Tifrunner.gnm1.ann1.02E8LK | B187: 0 | C187: 0 | D187: 0 | E187: 0 | F187: 0 | G187: 0 | H187: 0 | I187: 0 | J187: 0 | K187: 0 | L187: 0
A188: arahy.Tifrunner.gnm1.ann1.02EFL5 | B188: 0 | C188: 0 | D188: 0 | E188: 0 | F188: 0 | G188: 0 | H188: 0 | I188: 0 | J188: 0 | K188: 0 | L188: 0
A189: arahy.Tifrunner.gnm1.ann1.02EG99 | B189: 0.696639 | C189: 2.38 | D189: 1.34538 | E189: 1.2714 | F189: 1.09204 | G189: 1.24384 | H189: 0.983821 | I189: 1.38582 | J189: 1.28648 | K189: 0.699264 | L189: 1.76531
A190: arahy.Tifrunner.gnm1.ann1.02ERGG | B190: 27.2962 | C190: 16.7886 | D190: 3.56501 | E190: 18.214 | F190: 10.0627 | G190: 19.3215 | H190: 13.8193 | I190: 17.5245 | J190: 10.3523 | K190: 33.4994 | L190: 20.2657
A191: arahy.Tifrunner.gnm1.ann1.02EUR6 | B191: 0 | C191: 0 | D191: 0 | E191: 0 | F191: 0 | G191: 0 | H191: 0 | I191: 0 | J191: 0 | K191: 0 | L191: 0
A192: arahy.Tifrunner.gnm1.ann1.02EYZX | B192: 0 | C192: 0 | D192: 0 | E192: 0 | F192: 0 | G192: 0 | H192: 0 | I192: 0 | J192: 0 | K192: 0 | L192: 0
A193: arahy.Tifrunner.gnm1.ann1.02EZ4F | B193: 16.7124 | C193: 13.0228 | D193: 6.77499 | E193: 13.5162 | F193: 15.1888 | G193: 12.245 | H193: 15.0762 | I193: 13.4601 | J193: 13.6708 | K193: 18.1059 | L193: 10.2027
A194: arahy.Tifrunner.gnm1.ann1.02F7EH | B194: 1.50047 | C194: 2.09543 | D194: 0 | E194: 2.21839 | F194: 2.31816 | G194: 2.44825 | H194: 2.98781 | I194: 2.01755 | J194: 1.93977 | K194: 0.594944 | L194: 2.05626
A195: arahy.Tifrunner.gnm1.ann1.02FBPF | B195: 0.181092 | C195: 2.26739 | D195: 0 | E195: 2.12335 | F195: 1.70791 | G195: 1.06456 | H195: 1.65981 | I195: 2.58049 | J195: 2.54225 | K195: 0 | L195: 2.2134
A196: arahy.Tifrunner.gnm1.ann1.02FJ5F | B196: 0 | C196: 0 | D196: 0 | E196: 0 | F196: 0 | G196: 0 | H196: 0 | I196: 0 | J196: 0 | K196: 0 | L196: 0
A197: arahy.Tifrunner.gnm1.ann1.02FWCT | B197: 1.81418 | C197: 3.82991 | D197: 3.05639 | E197: 3.01144 | F197: 2.93224 | G197: 3.73936 | H197: 3.12248 | I197: 3.70265 | J197: 3.06501 | K197: 1.88511 | L197: 3.41605
A198: arahy.Tifrunner.gnm1.ann1.02GP41 | B198: 0 | C198: 0 | D198: 0 | E198: 0 | F198: 0 | G198: 0 | H198: 0 | I198: 0 | J198: 0 | K198: 0 | L198: 0
A199: arahy.Tifrunner.gnm1.ann1.02H4Y5 | B199: 0 | C199: 0.0606832 | D199: 0 | E199: 0 | F199: 0 | G199: 0 | H199: 0 | I199: 0 | J199: 0 | K199: 0 | L199: 0
A200: arahy.Tifrunner.gnm1.ann1.02I6X5 | B200: 9.48794 | C200: 5.3607 | D200: 5.6184 | E200: 6.71702 | F200: 4.21507 | G200: 6.60637 | H200: 8.01943 | I200: 4.75579 | J200: 5.02953 | K200: 13.1756 | L200: 6.03268
... 4300 more rows

Sheet Sheet2
A1: Gene ID | B1: Chromosome | C1: Start (bp) | D1: End (bp) | E1: No. of Methylated sites | AL1: FPKM
E2: Sample 1 | H2: Sample 2 | K2: Sample 3 | N2: Sample 4 | Q2: Sample 5 | T2: Sample 6 | W2: Sample 7 | Z2: Sample 8 | AC2: Sample 9 | AF2: Sample 10 | AI2: Sample 11 | AL2: Sample 1 | AM2: Sample 2 | AN2: Sample 3 | AO2: Sample 4 | AP2: Sample 5 | AQ2: Sample 6 | AR2: Sample 7 | AS2: Sample 8 | AT2: Sample 9 | AU2: Sample 10 | AV2: Sample 11
E3: Promoter | F3: Exon | G3: Intron | H3: Promoter | I3: Exon | J3: Intron | K3: Promoter | L3: Exon | M3: Intron | N3: Promoter | O3: Exon | P3: Intron | Q3: Promoter | R3: Exon | S3: Intron | T3: Promoter | U3: Exon | V3: Intron | W3: Promoter | X3: Exon | Y3: Intron | Z3: Promoter | AA3: Exon | AB3: Intron | AC3: Promoter | AD3: Exon | AE3: Intron | AF3: Promoter | AG3: Exon | AH3: Intron | AI3: Promoter | AJ3: Exon | AK3: Intron
A4: arahy.Tifrunner.gnm1.ann1.03WWG0 | B4: arahy.Tifrunner.gnm1.Arahy.05 | C4: 37937097 | D4: 37947386 | E4: 71 | F4: 5 | G4: 0 | H4: 55 | I4: 0 | J4: 1 | K4: 34 | L4: 2 | M4: 2 | N4: 46 | O4: 2 | P4: 0 | Q4: 54 | R4: 3 | S4: 1 | T4: 31 | U4: 0 | V4: 0 | W4: 37 | X4: 4 | Y4: 0 | Z4: 41 | AA4: 32 | AB4: 23 | AC4: 46 | AD4: 7 | AE4: 0 | AF4: 58 | AG4: 4 | AH4: 1 | AI4: 53 | AJ4: 3 | AK4: 1 | AL4: 10.4569 | AM4: 12.3583 | AN4: 3.91504 | AO4: 5.75944 | AP4: 6.39642 | AQ4: 0 | AR4: 12.1539 | AS4: 22.2065 | AT4: 6.60017 | AU4: 8.70599 | AV4: 7.95803
A5: arahy.Tifrunner.gnm1.ann1.11UTVE | B5: arahy.Tifrunner.gnm1.Arahy.01 | C5: 48536144 | D5: 48538900 | E5: 105 | F5: 60 | G5: 10 | H5: 105 | I5: 53 | J5: 10 | K5: 88 | L5: 57 | M5: 12 | N5: 110 | O5: 38 | P5: 6 | Q5: 77 | R5: 44 | S5: 4 | T5: 92 | U5: 1 | V5: 0 | W5: 81 | X5: 1 | Y5: 0 | Z5: 91 | AA5: 26 | AB5: 6 | AC5: 80 | AD5: 0 | AE5: 0 | AF5: 87 | AG5: 0 | AH5: 0 | AI5: 130 | AJ5: 5 | AK5: 12 | AL5: 1.88382 | AM5: 1.18246 | AN5: 0 | AO5: 0.995456 | AP5: 0.425618 | AQ5: 1.49325 | AR5: 2.94193 | AS5: 0.961147 | AT5: 1.88134 | AU5: 0.749926 | AV5: 1.34892
A6: arahy.Tifrunner.gnm1.ann1.2TJ8DU | B6: arahy.Tifrunner.gnm1.Arahy.05 | C6: 27223429 | D6: 27226622 | E6: 138 | F6: 3 | G6: 0 | H6: 151 | I6: 2 | J6: 0 | K6: 166 | L6: 2 | M6: 1 | N6: 190 | O6: 0 | P6: 0 | Q6: 165 | R6: 3 | S6: 1 | T6: 165 | U6: 3 | V6: 1 | W6: 163 | X6: 3 | Y6: 0 | Z6: 186 | AA6: 3 | AB6: 2 | AC6: 171 | AD6: 5 | AE6: 2 | AF6: 158 | AG6: 1 | AH6: 0 | AI6: 156 | AJ6: 0 | AK6: 0 | AL6: 0 | AM6: 0 | AN6: 0 | AO6: 0.132321 | AP6: 0 | AQ6: 0 | AR6: 0.493933 | AS6: 0 | AT6: 0.188993 | AU6: 0 | AV6: 0
A7: arahy.Tifrunner.gnm1.ann1.4H9MWH | B7: arahy.Tifrunner.gnm1.Arahy.05 | C7: 90643694 | D7: 90651051 | E7: 48 | F7: 73 | G7: 57 | H7: 39 | I7: 75 | J7: 81 | K7: 62 | L7: 57 | M7: 65 | N7: 50 | O7: 76 | P7: 78 | Q7: 43 | R7: 74 | S7: 106 | T7: 58 | U7: 59 | V7: 94 | W7: 49 | X7: 70 | Y7: 55 | Z7: 72 | AA7: 62 | AB7: 93 | AC7: 48 | AD7: 73 | AE7: 102 | AF7: 44 | AG7: 77 | AH7: 94 | AI7: 49 | AJ7: 72 | AK7: 93 | AL7: 0.524302 | AM7: 0.7346 | AN7: 0 | AO7: 0.60625 | AP7: 0.375108 | AQ7: 1.25743 | AR7: 0.18121 | AS7: 0.044869 | AT7: 3.14885 | AU7: 0.0809083 | AV7: 0.450772
A8: arahy.Tifrunner.gnm1.ann1.64ZMMV | B8: arahy.Tifrunner.gnm1.Arahy.14 | C8: 130448322 | D8: 130460859 | E8: 122 | F8: 34 | G8: 206 | H8: 111 | I8: 28 | J8: 109 | K8: 126 | L8: 25 | M8: 188 | N8: 128 | O8: 18 | P8: 222 | Q8: 120 | R8: 48 | S8: 225 | T8: 136 | U8: 31 | V8: 86 | W8: 96 | X8: 16 | Y8: 72 | Z8: 137 | AA8: 32 | AB8: 85 | AC8: 123 | AD8: 27 | AE8: 65 | AF8: 80 | AG8: 38 | AH8: 182 | AI8: 103 | AJ8: 35 | AK8: 216 | AL8: 0.0917616 | AM8: 0.665906 | AN8: 0 | AO8: 0.484459 | AP8: 0.365338 | AQ8: 0.427633 | AR8: 0.260186 | AS8: 0.411188 | AT8: 0.369895 | AU8: 0.309442 | AV8: 0.513018
A9: arahy.Tifrunner.gnm1.ann1.6IM7DK | B9: arahy.Tifrunner.gnm1.Arahy.15 | C9: 153613244 | D9: 153616640 | E9: 0 | F9: 48 | G9: 3 | H9: 0 | I9: 10 | J9: 2 | K9: 0 | L9: 4 | M9: 1 | N9: 0 | O9: 53 | P9: 3 | Q9: 5 | R9: 41 | S9: 1 | T9: 0 | U9: 4 | V9: 1 | W9: 3 | X9: 27 | Y9: 2 | Z9: 0 | AA9: 9 | AB9: 1 | AC9: 7 | AD9: 20 | AE9: 0 | AF9: 12 | AG9: 14 | AH9: 0 | AI9: 3 | AJ9: 2 | AK9: 0 | AL9: 18.74 | AM9: 9.60725 | AN9: 13.885 | AO9: 19.1324 | AP9: 28.9917 | AQ9: 8.37612 | AR9: 16.4835 | AS9: 10.4173 | AT9: 25.8279 | AU9: 13.5804 | AV9: 6.85209
A10: arahy.Tifrunner.gnm1.ann1.79FMKA | B10: arahy.Tifrunner.gnm1.Arahy.05 | C10: 91047109 | D10: 91050447 | E10: 9 | F10: 21 | G10: 1 | H10: 16 | I10: 52 | J10: 0 | K10: 0 | L10: 12 | M10: 0 | N10: 4 | O10: 23 | P10: 2 | Q10: 37 | R10: 34 | S10: 3 | T10: 5 | U10: 12 | V10: 1 | W10: 5 | X10: 59 | Y10: 1 | Z10: 2 | AA10: 25 | AB10: 1 | AC10: 0 | AD10: 16 | AE10: 1 | AF10: 3 | AG10: 20 | AH10: 0 | AI10: 31 | AJ10: 6 | AK10: 0 | AL10: 16.2095 | AM10: 7.32343 | AN10: 20.5309 | AO10: 17.2811 | AP10: 26.4319 | AQ10: 8.08113 | AR10: 13.101 | AS10: 9.61427 | AT10: 22.9649 | AU10: 13.2622 | AV10: 5.83629
A11: arahy.Tifrunner.gnm1.ann1.9AW6YP | B11: arahy.Tifrunner.gnm1.Arahy.13 | C11: 125065242 | D11: 125069183 | E11: 19 | F11: 13 | G11: 4 | H11: 19 | I11: 11 | J11: 0 | K11: 11 | L11: 20 | M11: 0 | N11: 38 | O11: 14 | P11: 6 | Q11: 13 | R11: 23 | S11: 0 | T11: 53 | U11: 6 | V11: 0 | W11: 20 | X11: 22 | Y11: 0 | Z11: 26 | AA11: 21 | AB11: 2 | AC11: 19 | AD11: 33 | AE11: 0 | AF11: 20 | AG11: 25 | AH11: 0 | AI11: 40 | AJ11: 17 | AK11: 0 | AL11: 8.10629 | AM11: 2.605 | AN11: 2.67334 | AO11: 6.39199 | AP11: 7.76479 | AQ11: 4.83868 | AR11: 5.56617 | AS11: 5.65989 | AT11: 9.98238 | AU11: 4.69385 | AV11: 4.99911
A12: arahy.Tifrunner.gnm1.ann1.AH38KH | B12: arahy.Tifrunner.gnm1.Arahy.03 | C12: 142674611 | D12: 142676187 | E12: 26 | F12: 0 | G12: 0 | H12: 21 | I12: 1 | J12: 0 | K12: 33 | L12: 0 | M12: 0 | N12: 47 | O12: 0 | P12: 0 | Q12: 20 | R12: 1 | S12: 6 | T12: 77 | U12: 1 | V12: 0 | W12: 39 | X12: 2 | Y12: 0 | Z12: 37 | AA12: 0 | AB12: 0 | AC12: 66 | AD12: 1 | AE12: 0 | AF12: 51 | AG12: 0 | AH12: 3 | AI12: 68 | AJ12: 0 | AK12: 0 | AL12: 0 | AM12: 0 | AN12: 0 | AO12: 0 | AP12: 0 | AQ12: 0 | AR12: 0 | AS12: 0 | AT12: 0 | AU12: 0 | AV12: 0
A13: arahy.Tifrunner.gnm1.ann1.B8VHIV | B13: arahy.Tifrunner.gnm1.Arahy.03 | C13: 136920075 | D13: 136922550 | E13: 102 | F13: 2 | G13: 0 | H13: 110 | I13: 0 | J13: 9 | K13: 93 | L13: 0 | M13: 12 | N13: 83 | O13: 2 | P13: 25 | Q13: 100 | R13: 0 | S13: 42 | T13: 104 | U13: 0 | V13: 10 | W13: 105 | X13: 1 | Y13: 27 | Z13: 80 | AA13: 0 | AB13: 35 | AC13: 76 | AD13: 0 | AE13: 0 | AF13: 144 | AG13: 1 | AH13: 38 | AI13: 94 | AJ13: 2 | AK13: 24 | AL13: 0 | AM13: 0 | AN13: 0 | AO13: 0 | AP13: 0.242408 | AQ13: 0 | AR13: 0 | AS13: 0 | AT13: 0 | AU13: 0 | AV13: 0
A14: arahy.Tifrunner.gnm1.ann1.BK36SG | B14: arahy.Tifrunner.gnm1.Arahy.19 | C14: 157320565 | D14: 157324476 | E14: 47 | F14: 4 | G14: 3 | H14: 17 | I14: 0 | J14: 1 | K14: 31 | L14: 11 | M14: 0 | N14: 29 | O14: 4 | P14: 1 | Q14: 21 | R14: 1 | S14: 1 | T14: 17 | U14: 1 | V14: 2 | W14: 7 | X14: 0 | Y14: 1 | Z14: 44 | AA14: 0 | AB14: 5 | AC14: 39 | AD14: 1 | AE14: 3 | AF14: 7 | AG14: 3 | AH14: 1 | AI14: 33 | AJ14: 0 | AK14: 0 | AL14: 0 | AM14: 0 | AN14: 0 | AO14: 0.0622533 | AP14: 0 | AQ14: 0 | AR14: 0 | AS14: 0.0148446 | AT14: 0 | AU14: 0 | AV14: 0
A15: arahy.Tifrunner.gnm1.ann1.E110XT | B15: arahy.Tifrunner.gnm1.Arahy.01 | C15: 6097606 | D15: 6099820 | E15: 1 | F15: 0 | G15: 0 | H15: 1 | I15: 0 | J15: 0 | K15: 1 | L15: 0 | M15: 0 | N15: 2 | O15: 1 | P15: 1 | Q15: 2 | R15: 0 | S15: 1 | T15: 1 | U15: 0 | V15: 0 | W15: 0 | X15: 0 | Y15: 0 | Z15: 0 | AA15: 1 | AB15: 1 | AC15: 0 | AD15: 1 | AE15: 0 | AF15: 9 | AG15: 0 | AH15: 4 | AI15: 15 | AJ15: 0 | AK15: 0 | AL15: 0.482645 | AM15: 11.2432 | AN15: 0.09179 | AO15: 12.3724 | AP15: 0.782884 | AQ15: 0.311792 | AR15: 0.888131 | AS15: 0.71684 | AT15: 5.54498 | AU15: 0.0581797 | AV15: 6.60922
A16: arahy.Tifrunner.gnm1.ann1.EH6AZ8 | B16: arahy.Tifrunner.gnm1.Arahy.11 | C16: 65103997 | D16: 65107838 | E16: 51 | F16: 0 | G16: 18 | H16: 57 | I16: 0 | J16: 14 | K16: 33 | L16: 0 | M16: 29 | N16: 64 | O16: 0 | P16: 12 | Q16: 84 | R16: 0 | S16: 20 | T16: 95 | U16: 1 | V16: 9 | W16: 67 | X16: 0 | Y16: 27 | Z16: 68 | AA16: 1 | AB16: 76 | AC16: 69 | AD16: 0 | AE16: 63 | AF16: 46 | AG16: 1 | AH16: 40 | AI16: 83 | AJ16: 0 | AK16: 31 | AL16: 3.22978 | AM16: 2.0782 | AN16: 0 | AO16: 1.73934 | AP16: 2.66357 | AQ16: 10.9362 | AR16: 5.84642 | AS16: 6.49159 | AT16: 2.99263 | AU16: 5.34739 | AV16: 6.56416
A17: arahy.Tifrunner.gnm1.ann1.FL4TQK | B17: arahy.Tifrunner.gnm1.Arahy.03 | C17: 142735121 | D17: 142737425 | E17: 87 | F17: 23 | G17: 14 | H17: 81 | I17: 21 | J17: 6 | K17: 68 | L17: 20 | M17: 11 | N17: 85 | O17: 25 | P17: 12 | Q17: 83 | R17: 17 | S17: 14 | T17: 91 | U17: 20 | V17: 9 | W17: 47 | X17: 9 | Y17: 18 | Z17: 89 | AA17: 12 | AB17: 18 | AC17: 100 | AD17: 12 | AE17: 13 | AF17: 93 | AG17: 18 | AH17: 12 | AI17: 123 | AJ17: 26 | AK17: 11 | AL17: 4.51936 | AM17: 4.3357 | AN17: 6.19773 | AO17: 3.90447 | AP17: 2.05555 | AQ17: 6.76583 | AR17: 5.16202 | AS17: 4.85015 | AT17: 2.39859 | AU17: 5.32121 | AV17: 7.01466
A18: arahy.Tifrunner.gnm1.ann1.HG26LZ | B18: arahy.Tifrunner.gnm1.Arahy.14 | C18: 139743380 | D18: 139743790 | E18: 49 | F18: 12 | G18: 0 | H18: 55 | I18: 16 | J18: 0 | K18: 59 | L18: 11 | M18: 0 | N18: 99 | O18: 26 | P18: 0 | Q18: 85 | R18: 27 | S18: 0 | T18: 84 | U18: 22 | V18: 0 | W18: 53 | X18: 10 | Y18: 0 | Z18: 55 | AA18: 20 | AB18: 0 | AC18: 61 | AD18: 9 | AE18: 0 | AF18: 60 | AG18: 17 | AH18: 0 | AI18: 98 | AJ18: 30 | AK18: 0 | AL18: 0 | AM18: 0 | AN18: 0 | AO18: 0 | AP18: 0 | AQ18: 0 | AR18: 0 | AS18: 0 | AT18: 0 | AU18: 0 | AV18: 0
A19: arahy.Tifrunner.gnm1.ann1.JV9T2X | B19: arahy.Tifrunner.gnm1.Arahy.02 | C19: 4730198 | D19: 4731619 | E19: 5 | F19: 1 | G19: 0 | H19: 9 | I19: 2 | J19: 0 | K19: 0 | L19: 1 | M19: 0 | N19: 0 | O19: 1 | P19: 0 | Q19: 0 | R19: 2 | S19: 0 | T19: 19 | U19: 1 | V19: 0 | W19: 0 | X19: 1 | Y19: 0 | Z19: 0 | AA19: 1 | AB19: 0 | AC19: 7 | AD19: 0 | AE19: 0 | AF19: 7 | AG19: 0 | AH19: 0 | AI19: 4 | AJ19: 3 | AK19: 0 | AL19: 2.50251 | AM19: 1.39753 | AN19: 0 | AO19: 2.30785 | AP19: 3.11871 | AQ19: 6.1864 | AR19: 3.3415 | AS19: 5.23288 | AT19: 4.33486 | AU19: 0.901507 | AV19: 3.55188
A20: arahy.Tifrunner.gnm1.ann1.KFWY3N | B20: arahy.Tifrunner.gnm1.Arahy.17 | C20: 10411827 | D20: 10414624 | E20: 7 | F20: 1 | G20: 0 | H20: 3 | I20: 3 | J20: 0 | K20: 102 | L20: 1 | M20: 10 | N20: 113 | O20: 2 | P20: 30 | Q20: 100 | R20: 1 | S20: 15 | T20: 80 | U20: 1 | V20: 0 | W20: 0 | X20: 1 | Y20: 2 | Z20: 2 | AA20: 2 | AB20: 33 | AC20: 96 | AD20: 2 | AE20: 6 | AF20: 94 | AG20: 1 | AH20: 17 | AI20: 123 | AJ20: 0 | AK20: 21 | AL20: 0.398345 | AM20: 1.13604 | AN20: 0.773175 | AO20: 0.951537 | AP20: 0.638714 | AQ20: 0.717284 | AR20: 0.525524 | AS20: 1.16588 | AT20: 1.37854 | AU20: 1.11549 | AV20: 0.368497
A21: arahy.Tifrunner.gnm1.ann1.NFLY9K | B21: arahy.Tifrunner.gnm1.Arahy.09 | C21: 113751526 | D21: 113755360 | E21: 110 | F21: 1 | G21: 0 | H21: 50 | I21: 1 | J21: 0 | K21: 76 | L21: 1 | M21: 0 | N21: 71 | O21: 0 | P21: 0 | Q21: 73 | R21: 4 | S21: 0 | T21: 62 | U21: 0 | V21: 1 | W21: 66 | X21: 0 | Y21: 0 | Z21: 83 | AA21: 4 | AB21: 0 | AC21: 72 | AD21: 3 | AE21: 0 | AF21: 87 | AG21: 1 | AH21: 3 | AI21: 82 | AJ21: 1 | AK21: 0 | AL21: 0 | AM21: 0 | AN21: 0 | AO21: 0 | AP21: 0 | AQ21: 0 | AR21: 0 | AS21: 0 | AT21: 0 | AU21: 0 | AV21: 0
A22: arahy.Tifrunner.gnm1.ann1.Q3UCZQ | B22: arahy.Tifrunner.gnm1.Arahy.11 | C22: 17039791 | D22: 17053496 | E22: 19 | F22: 1 | G22: 123 | H22: 15 | I22: 0 | J22: 109 | K22: 41 | L22: 0 | M22: 113 | N22: 27 | O22: 2 | P22: 120 | Q22: 14 | R22: 4 | S22: 126 | T22: 7 | U22: 1 | V22: 145 | W22: 27 | X22: 1 | Y22: 94 | Z22: 14 | AA22: 2 | AB22: 114 | AC22: 3 | AD22: 0 | AE22: 116 | AF22: 12 | AG22: 1 | AH22: 160 | AI22: 30 | AJ22: 2 | AK22: 129 | AL22: 0.0253577 | AM22: 0.0533723 | AN22: 0 | AO22: 0.0222934 | AP22: 0.055501 | AQ22: 0.0191155 | AR22: 0 | AS22: 0 | AT22: 0.0938889 | AU22: 0 | AV22: 0.0288505
A23: arahy.Tifrunner.gnm1.ann1.R0TYU9 | B23: arahy.Tifrunner.gnm1.Arahy.03 | C23: 141734020 | D23: 141739033 | E23: 1 | F23: 0 | G23: 0 | H23: 1 | I23: 4 | J23: 2 | K23: 0 | L23: 0 | M23: 3 | N23: 4 | O23: 2 | P23: 2 | Q23: 7 | R23: 5 | S23: 2 | T23: 1 | U23: 6 | V23: 1 | W23: 3 | X23: 6 | Y23: 0 | Z23: 0 | AA23: 9 | AB23: 2 | AC23: 3 | AD23: 5 | AE23: 1 | AF23: 6 | AG23: 6 | AH23: 2 | AI23: 5 | AJ23: 8 | AK23: 2 | AL23: 1.77076 | AM23: 4.4465 | AN23: 0 | AO23: 1.67893 | AP23: 1.47684 | AQ23: 1.99701 | AR23: 2.36368 | AS23: 1.97896 | AT23: 1.13642 | AU23: 1.60235 | AV23: 3.18237
A24: arahy.Tifrunner.gnm1.ann1.SC2RCC | B24: arahy.Tifrunner.gnm1.Arahy.08 | C24: 1646001 | D24: 1651342 | E24: 53 | F24: 29 | G24: 29 | H24: 36 | I24: 28 | J24: 24 | K24: 53 | L24: 21 | M24: 11 | N24: 55 | O24: 36 | P24: 14 | Q24: 48 | R24: 18 | S24: 28 | T24: 58 | U24: 34 | V24: 23 | W24: 53 | X24: 40 | Y24: 37 | Z24: 39 | AA24: 29 | AB24: 29 | AC24: 63 | AD24: 31 | AE24: 29 | AF24: 83 | AG24: 42 | AH24: 22 | AI24: 52 | AJ24: 46 | AK24: 38 | AL24: 0.384844 | AM24: 0.407088 | AN24: 0 | AO24: 0.189881 | AP24: 0.231351 | AQ24: 0.126908 | AR24: 0.068589 | AS24: 0.0754809 | AT24: 0.134297 | AU24: 0.231336 | AV24: 0.673291
A25: arahy.Tifrunner.gnm1.ann1.T5DRVA | B25: arahy.Tifrunner.gnm1.Arahy.02 | C25: 1468073 | D25: 1475371 | E25: 23 | F25: 29 | G25: 7 | H25: 31 | I25: 20 | J25: 8 | K25: 20 | L25: 14 | M25: 0 | N25: 30 | O25: 13 | P25: 2 | Q25: 37 | R25: 19 | S25: 8 | T25: 67 | U25: 15 | V25: 8 | W25: 48 | X25: 15 | Y25: 3 | Z25: 60 | AA25: 29 | AB25: 5 | AC25: 72 | AD25: 58 | AE25: 0 | AF25: 78 | AG25: 37 | AH25: 9 | AI25: 83 | AJ25: 47 | AK25: 10 | AL25: 0.0641991 | AM25: 0.29966 | AN25: 0 | AO25: 0.126906 | AP25: 0.266879 | AQ25: 0.375052 | AR25: 0.228176 | AS25: 0.291249 | AT25: 0.818386 | AU25: 0 | AV25: 0.218959
A26: arahy.Tifrunner.gnm1.ann1.VB9WQ9 | B26: arahy.Tifrunner.gnm1.Arahy.15 | C26: 152296815 | D26: 152298553 | E26: 34 | F26: 0 | G26: 0 | H26: 11 | I26: 0 | J26: 0 | K26: 0 | L26: 0 | M26: 0 | N26: 14 | O26: 0 | P26: 0 | Q26: 9 | R26: 0 | S26: 0 | T26: 18 | U26: 0 | V26: 0 | W26: 9 | X26: 0 | Y26: 0 | Z26: 9 | AA26: 0 | AB26: 0 | AC26: 16 | AD26: 2 | AE26: 0 | AF26: 2 | AG26: 1 | AH26: 0 | AI26: 7 | AJ26: 0 | AK26: 0 | AL26: 0 | AM26: 0 | AN26: 0 | AO26: 0 | AP26: 0 | AQ26: 0 | AR26: 0 | AS26: 0 | AT26: 0 | AU26: 0 | AV26: 0
A27: arahy.Tifrunner.gnm1.ann1.WFW04C | B27: arahy.Tifrunner.gnm1.Arahy.03 | C27: 143140841 | D27: 143143616 | E27: 1 | F27: 0 | G27: 0 | H27: 3 | I27: 0 | J27: 0 | K27: 1 | L27: 1 | M27: 0 | N27: 10 | O27: 0 | P27: 0 | Q27: 0 | R27: 3 | S27: 0 | T27: 1 | U27: 3 | V27: 0 | W27: 0 | X27: 0 | Y27: 1 | Z27: 11 | AA27: 2 | AB27: 0 | AC27: 0 | AD27: 1 | AE27: 0 | AF27: 5 | AG27: 2 | AH27: 1 | AI27: 9 | AJ27: 1 | AK27: 0 | AL27: 0.0560561 | AM27: 0.180275 | AN27: 0 | AO27: 0.213298 | AP27: 0.0980891 | AQ27: 0.492969 | AR27: 0.514072 | AS27: 0.222373 | AT27: 0.0867225 | AU27: 0.116629 | AV27: 0.226456
A28: arahy.Tifrunner.gnm1.ann1.WI4YKF | B28: arahy.Tifrunner.gnm1.Arahy.02 | C28: 224511 | D28: 227478 | E28: 8 | F28: 2 | G28: 5 | H28: 11 | I28: 2 | J28: 5 | K28: 18 | L28: 1 | M28: 5 | N28: 33 | O28: 1 | P28: 10 | Q28: 11 | R28: 1 | S28: 2 | T28: 82 | U28: 1 | V28: 8 | W28: 57 | X28: 0 | Y28: 8 | Z28: 119 | AA28: 0 | AB28: 15 | AC28: 113 | AD28: 0 | AE28: 16 | AF28: 82 | AG28: 1 | AH28: 14 | AI28: 115 | AJ28: 0 | AK28: 17 | AL28: 1.26854 | AM28: 1.5468 | AN28: 4.33589 | AO28: 1.09269 | AP28: 1.63375 | AQ28: 2.4165 | AR28: 1.75325 | AS28: 1.92457 | AT28: 1.95222 | AU28: 2.27173 | AV28: 2.5307
A29: arahy.Tifrunner.gnm1.ann1.X5K9YD | B29: arahy.Tifrunner.gnm1.Arahy.14 | C29: 20953082 | D29: 20957484 | E29: 2 | F29: 9 | G29: 0 | H29: 1 | I29: 4 | J29: 1 | K29: 2 | L29: 5 | M29: 0 | N29: 1 | O29: 4 | P29: 0 | Q29: 2 | R29: 3 | S29: 0 | T29: 0 | U29: 1 | V29: 0 | W29: 1 | X29: 1 | Y29: 0 | Z29: 9 | AA29: 2 | AB29: 0 | AC29: 2 | AD29: 1 | AE29: 0 | AF29: 2 | AG29: 3 | AH29: 0 | AI29: 4 | AJ29: 7 | AK29: 0 | AL29: 4.41634 | AM29: 8.62242 | AN29: 3.20597 | AO29: 8.2996 | AP29: 6.4389 | AQ29: 9.5164 | AR29: 8.94424 | AS29: 11.1707 | AT29: 11.8517 | AU29: 4.14389 | AV29: 18.1967
A30: arahy.Tifrunner.gnm1.ann1.ZE0PKC | B30: arahy.Tifrunner.gnm1.Arahy.05 | C30: 98123480 | D30: 98134167 | E30: 11 | F30: 2 | G30: 4 | H30: 6 | I30: 0 | J30: 0 | K30: 7 | L30: 4 | M30: 3 | N30: 16 | O30: 1 | P30: 1 | Q30: 23 | R30: 8 | S30: 20 | T30: 21 | U30: 2 | V30: 12 | W30: 9 | X30: 3 | Y30: 2 | Z30: 27 | AA30: 2 | AB30: 4 | AC30: 4 | AD30: 7 | AE30: 5 | AF30: 17 | AG30: 4 | AH30: 13 | AI30: 22 | AJ30: 2 | AK30: 22 | AL30: 29.6974 | AM30: 25.8172 | AN30: 29.2246 | AO30: 30.117 | AP30: 29.3108 | AQ30: 35.7171 | AR30: 37.3105 | AS30: 37.2643 | AT30: 37.6772 | AU30: 31.2556 | AV30: 41.0515
A31: arahy.Tifrunner.gnm1.ann1.ZJ2IZL | B31: arahy.Tifrunner.gnm1.Arahy.05 | C31: 92267387 | D31: 92269092 | E31: 0 | F31: 6 | G31: 0 | H31: 1 | I31: 2 | J31: 0 | K31: 1 | L31: 4 | M31: 0 | N31: 0 | O31: 7 | P31: 0 | Q31: 2 | R31: 7 | S31: 0 | T31: 0 | U31: 2 | V31: 0 | W31: 0 | X31: 3 | Y31: 0 | Z31: 1 | AA31: 2 | AB31: 0 | AC31: 0 | AD31: 6 | AE31: 0 | AF31: 3 | AG31: 8 | AH31: 0 | AI31: 2 | AJ31: 8 | AK31: 0 | AL31: 0 | AM31: 0 | AN31: 0 | AO31: 0.102916 | AP31: 0.0342457 | AQ31: 0 | AR31: 0 | AS31: 0 | AT31: 0 | AU31: 0 | AV31: 0
